Workbook

Sheet Uw dossier
V2: Uw financieel plan
C3: Voorspelling financiële resultaten van uw online activiteiten | V3: versie 2.0 - gepubliceerd op 01/04/2018
C5: Via dit excel-document kunt u de financiële haalbaarheid van uw plan om uw zaak ook online uit te bouwen, laten berekenen en visualiseren. Dit excel-document is slechts één van de beschikbare tools. U vindt ze allemaal terug op de website www.hetinternetookuwzaak.be.
C7: Alhoewel het excel-document en daar in opgenomen fomules en standaard waarden met de grootste zorg zijn samengesteld is het evident dat het resultaat slechts een inschatting is. Het is belangrijk dat u de resultaten dan ook met die wetenschap behandelt.
B9: Uw bedrijf | Y9: ALGEMEEN
Y10: Sector | Z10: 16
C11: Probeer een zo accuraat mogelijk antwoord te geven op alle onderstaande vragen. | Y11: Turnover | Z11: 4
Y12: # Klanten | Z12: 5
C13: In welke sector bent u actief?
C16: Wat is uw huidige omzet?
C19: Wat is uw marge?
C20: 50 | D20: %
C22: Hoeveel klanten heeft u momenteel?
B28: Social Media | Y28: SOCIAL
Y29: Include | Z29: 1
C30: Wilt u het gebruik van Sociale Media mee opnemen in uw business case? | Y30: Include FB | Z30: 1
Y31: Include LI | Z31: 1
Y32: Include TW | Z32: 1
C33: Overzicht van de sociale media kanalen: | Y33: Include Insta | Z33: 1
D34: Kanaal | F34: Huidige status | I34: Geplande status | Y34: Include Pint | Z34: 1
L35: Opmerking: Indien u kiest voor 'Niet actief' wordt er een opstartkost in rekening gebracht. Indien u kiest voor 'Niet actief' of 'Aanwezig maar geen actief gebruik' wordt er ook een leercurve in rekening gebracht. | Y35: StatusFacebook | Z35: 1
Y36: StatusLinkedIn | Z36: 1
Y37: StatusTwitter | Z37: 1
Y38: StatusInstagram | Z38: 1
Y39: StatusPinterest | Z39: 1
Y40: FutureFacebook | Z40: 3
Y41: FutureLinkedIn | Z41: 3
C42: In welke talen zal u communiceren op sociale media? | Y42: FutureTwitter | Z42: 3
Y43: FutureInstagram | Z43: 3
Y44: FuturePinterest | Z44: 3
Y45: Talen | Z45: 2
Y46: ChannelCount | Z46: =IncludeFacebook+IncludeLinkedIn+IncludeTwitter+IncludeInstagram+IncludePinterest -> 5
L47: Opmerking: Voert u zelf deze taken uit? Waardeer dan uw eigen tijd in €/uur. Doet u beroep op externe uitvoerders, dan kunt u het mee te rekenen netto uurtarief hier invullen, bijvoorbeeld 50€/uur.
C49: Aan welk uurtarief moet de te investeren tijd in Sociale Media opgenomen worden?
D50: 50 | E50: €/uur
B54: Uw financieel plan
B55: Meer tips en inspiratie op www.hetinternetookuwzaak.be
B56: Pagina 1 van 11
V59: Uw financieel plan
B63: Email marketing | Y63: EMAIL MKT
Y64: Include | Z64: 1
C65: Wilt u het gebruik van email marketing mee opnemen in uw business case? | Y65: Activiteit | Z65: 1
Y66: Frequentie | Z66: 2
Y67: Talen | Z67: 2
C68: In hoeverre bent u al actief met email marketing? | L68: Opmerking: Indien u kiest voor 'Niet actief' wordt er een opstartkost in rekening gebracht. Indien u kiest voor 'Niet actief' of 'Af en toe van eigen email adres' wordt er ook een leercurve in rekening gebracht.
C71: Met welke frequentie gaat u emails sturen?
C74: In welke talen zal u emails verzenden?
L79: Opmerking: Voert u zelf deze taken uit? Waardeer dan uw eigen tijd in €/uur. Doet u beroep op externe uitvoerders, dan kunt u het mee te rekenen netto uurtarief hier invullen, bijvoorbeeld 50€/uur.
C81: Aan welk uurtarief moet de te investeren tijd in email marketing opgenomen worden?
C82: 50 | D82: €/uur
B87: Content Marketing | Y87: BLOG
Y88: Include | Z88: 1
C89: Wilt u het gebruik van een blog mee opnemen in uw business case? | Y89: Activiteit | Z89: 1
Y90: Frequentie | Z90: 3
Y91: Talen | Z91: 2
C92: In hoeverre bent u al actief met een blog? | L92: Opmerking: Indien u kiest voor 'Niet actief' wordt er een opstartkost in rekening gebracht. Indien u kiest voor 'Niet actief' of 'Er is een blog maar die wordt weinig actief gebruikt' wordt er ook een leercurve in rekening gebracht.
C95: Met welke frequentie gaat u bloggen?
C98: In welke talen zal u bloggen?
L103: Opmerking: Voert u zelf deze taken uit? Waardeer dan uw eigen tijd in €/uur. Doet u beroep op externe uitvoerders, dan kunt u het mee te rekenen netto uurtarief hier invullen, bijvoorbeeld 50€/uur.
C105: Aan welk uurtarief moet de te investeren tijd in een blog opgenomen worden?
C106: 50 | D106: €/uur
B115: Uw financieel plan
B116: Meer tips en inspiratie op www.hetinternetookuwzaak.be
B117: Pagina 2 van 11
V120: Uw financieel plan
B123: Site of e-shop | Y123: SITE/SHOP
Y124: Include | Z124: 1
C125: Wilt u een website of e-shop opnemen in uw business case? | Y125: Site/shop | Z125: 2
Y126: Buy/Rent | Z126: 1
L132: Opmerking: Het koop-model: U laat uw site of e-shop volledig op maat maken en betaalt eenmalig een ontwikkelkost en een jaarlijkse onderhouds- en hostingkost.
D136: Hoeveel bedragen de éénmalige kosten? | M136: site op maat: | N136: tss. €2.500 en €10.000
E137: ontwikkeling | F137: 20000 | G137: € | M137: basis e-shop: | N137: tss. €5.000 en €25.000
M138: geïntegreerde e-shop: | N138: tss. €20.000 en €40.000
D139: Hoeveel bedragen de terugkerende kosten?
E140: onderhoud | F140: 2000 | G140: € | M140: Reken voor onderhoud en voor hosting telkens ongeveer +/- 10%
E142: hosting | F142: 2000 | G142: €
L143: Het huur-model: U betaalt een maandelijkse abonnementskost waarin alles inbegrepen is. Vaak dient u wel nog een percentage van uw omzet bij te dragen.
D146: Hoeveel bedraagt de jaarlijkse huurprijs? | L146: site op maat | N146: tss. €50 en €250 per maand
E147: Abonnement | G147: € | L147: basis e-shop | N147: tss. €100 en €1.000 per maand
L150: Opmerking: Het onderhouden van uw online productdatabase kan zeer arbeidsintensief zijn. Indien u de activiteiten zelf zal uitvoeren kunt u uw eigen tijd waarderen. Indien u een beroep doet op een consultant kunt u rekening houden met een gemiddeld uurtarief van €50. Indien u dit geautomatiseerd heeft kunt u het uurtarief op 0 €/uur zetten.
E151: Aantal producten | F151: 100 | G151: (op jaarbasis)
E153: Aantal wijzigingen in gamma | F153: 25 | G153: (op jaarbasis)
E155: Online brengen 1 product | F155: 30 | G155: (hoeveel tijd in minuten spendeert u daar aan?)
E157: Uurtarief | F157: 50 | G157: €/uur
L161: Opmerking: Geef de gemiddelde verzend- en retourkost in zoals die aangerekend worden aan de klant. De berekening houdt rekening met een effectieve vervoerskost waar het klantgedeelte van wordt afgetrokken. U kunt nog een percentage invullen van het aantal leveringen dat u gratis bezorgt (vb. grote bestellingen) of gratis laat afhalen (vb. afhalen in winkel). Percentage wordt standaard op 10% gezet.
E163: Kostprijs verzenden | F163: 0 | G163: €
E165: Kostprijs retour | F165: 3 | G165: €
D167: Percentage gratis verzending of afhaling
E168: Percentage | F168: 10 | G168: %
B173: Online adverteren
C175: Uw advertenties op Google en andere online kanalen zoals bijvoorbeeld sociale media, brengen bezoekers naar je website en winkel. Geef hieronder het bedrag in dat u jaarlijks voorziet voor online advertenties.
D177: Zoekmachine advertenties | H177: Sociale media advertenties
D179: Jaarbudget | E179: 2000 | G179: € | H179: Jaarbudget | I179: 500 | J179: €
B183: Uw financieel plan
B184: Meer tips en inspiratie op www.hetinternetookuwzaak.be
B185: Pagina 3 van 11
V188: Uw financieel plan
B191: Marktplaatsen | Y191: MARKETPLACES
Y192: Include | Z192: 0
C193: Wilt u uw producten verkopen op marktplaatsen?
C197: Geef de marktplaatsen, de verwachte jaaromzet, de abonnementskost en het commissiepercentage in.
F199: Marktplaats 1 | I199: Marktplaats 2 | L199: Marktplaats 3
E201: Marktplaats
N202: €
E203: Vaste kosten | H203: € | K203: € | N203: € | O203: Vaste kosten = onderhoudskost en de verzend- en retourkost
E205: Commissie marktplaats | H205: % | K205: % | N205: % | O205: Vul de af te stane commissie in % in
E207: Verwachte omzet jaar 1 | H207: € | K207: € | N207: € | O207: Vul de te verwachten jaaromzet in
E209: Verwachte omzet jaar 2 | H209: € | K209: € | N209: € | O209: Vul de te verwachten jaaromzet in
E211: Verwachte omzet jaar 3 | H211: € | K211: € | N211: € | O211: Vul de te verwachten jaaromzet in
B217: Personaliseren
C219: Indien u zelf over correcte waarden beschikt van de berekende parameters kunt u deze hier optioneel ingeven. De berekeningen gebeuren dan met uw parameters i.p.v. de standaard waarden.
C220: U kunt desgewenst ook zelf experimenteren met de gevoeligheid van deze parameters en het effect hiervan op uw financieel plan.
F222: Onze waarde | I222: Uw waarde
E223: Online conversie | F223: =VLOOKUP(VALUE(InputSector),SECTORDATA,3,0)*100 -> 3 | H223: % | K223: %
E225: Retour percentage | F225: 10 | H225: % | K225: %
E227: Gemiddelde bestelwaarde | F227: =VLOOKUP(VALUE(InputSector),SECTORDATA,6,0) -> 50 | H227: € | K227: €
E229: Online transactiekost | F229: =VLOOKUP(VALUE(InputSector),SECTORDATA,12,0)*100 -> 1.5 | H229: % | K229: %
E231: Behandel kost (incl verpakking) | F231: =VLOOKUP(VALUE(InputSector),SECTORDATA,15,0)+VLOOKUP(VALUE(InputSector),SECTORDATA,16,0) -> 5 | H231: € | K231: €
E233: Kostprijs verzending | F233: =VLOOKUP(VALUE(InputSector),SECTORDATA,19,0) -> 3.87 | H233: € | K233: €
C238: Klaar voor uw resultaten
C240: Hieronder vindt u uw financieel plan, dat de volgende elementen bevat: - Overzicht van alle kosten en baten Jaar 1 (pag. 5) - Overzicht van alle kosten en baten Jaar 2 (pag. 6) - Overzicht van alle kosten en baten Jaar 3 (pag. 7) - Zicht op evolutie van omzet, cashflow en klantenbestand (pag. 8) - Breakeven analyse voor uw e-shop (pag. 9)
C242: Op pagina 10 en 11 vindt u nog wat uitleg bij de gebruikte cijfers, formules en statistieken, alsook een bronvermelding. Met de "print" knop hiernaast kunt u het volledige excel-document, inclusief uw antwoorden en resultaten, afdrukken.
B246: Uw financieel plan
B247: Meer tips en inspiratie op www.hetinternetookuwzaak.be
B248: Pagina 4 van 11
V251: Uw financieel plan
C252: Uw resultaat
C254: Jaar 1
F255: m1 | G255: m2 | H255: m3 | I255: m4 | J255: m5 | K255: m6 | L255: m7 | M255: m8 | N255: m9 | O255: m10 | P255: m11 | Q255: m12
C256: Social Media
E257: Configuratie en onderhoud | F257: =IF(InputIncludeSocial=1,VLOOKUP(InputSector,SECTORDATA,32,0),"") -> 1358.62272
E258: Plaatsen van berichten, foto's, … | F258: =IF(InputIncludeSocial=1,VLOOKUP(InputSector,SECTORDATA,36,0)*(52/12),"") -> 1381.81758 | G258: =F258 -> 1381.81758 | H258: 1381.81758 | I258: 1381.81758 | J258: 1381.81758 | K258: 1381.81758 | L258: 1381.81758 | M258: 1381.81758 | N258: 1381.81758 | O258: 1381.81758 | P258: =O258 -> 1381.81758 | Q258: 1381.81758
E259: Netto resultaat Social Media | F259: =SUM(F257:F258) -> 2740.4403 | G259: =SUM(G257:G258) -> 1381.81758 | H259: 1381.81758 | I259: 1381.81758 | J259: 1381.81758 | K259: 1381.81758 | L259: 1381.81758 | M259: 1381.81758 | N259: 1381.81758 | O259: 1381.81758 | P259: 1381.81758 | Q259: 1381.81758
C260: Email Marketing
E261: Configuratie en onderhoud | F261: =IF(InputIncludeEmail=1,VLOOKUP(InputSector,SECTORDATA,44,0),"") -> 520
E262: Schrijven en versturen van emails | F262: =IF(InputIncludeEmail=1,VLOOKUP(InputSector,SECTORDATA,48,0)*(52/12),"") -> 417.0833333 | G262: =F262 -> 417.0833333 | H262: 417.0833333 | I262: 417.0833333 | J262: 417.0833333 | K262: 417.0833333 | L262: 417.0833333 | M262: 417.0833333 | N262: 417.0833333 | O262: 417.0833333 | P262: =O262 -> 417.0833333 | Q262: 417.0833333
E263: Abonnementskost | F263: =IF(InputIncludeEmail=1,(F280*FormuleEmailMultiplier*1.2%),"") -> 195 | G263: =IF(InputIncludeEmail=1,(G280*FormuleEmailMultiplier*1.2%),"") -> 197.9706277 | H263: 200.9832091 | I263: 204.0383369 | J263: 207.1366119 | K263: 210.2786434 | L263: 213.4650495 | M263: 216.6964567 | N263: 219.9735008 | O263: 223.2968261 | P263: 226.6670864 | Q263: 230.0849444
E264: Netto resultaat Email Marketing | F264: =SUM(F261:F263) -> 1132.083333 | G264: =SUM(G261:G263) -> 615.053961 | H264: 618.0665425 | I264: 621.1216702 | J264: 624.2199452 | K264: 627.3619767 | L264: 630.5483828 | M264: 633.7797901 | N264: 637.0568341 | O264: 640.3801595 | P264: 643.7504197 | Q264: 647.1682777
C265: Content Marketing | V265: 16
E266: Configuratie en onderhoud | F266: =IF(InputIncludeBlog=1,VLOOKUP(InputSector,SECTORDATA,56,0),"") -> 2600 | V266: 8.43
E267: Schrijven voor en promoten van blog | F267: =IF(InputIncludeBlog=1,VLOOKUP(InputSector,SECTORDATA,60,0)*(52/12),"") -> 154 | G267: =F267 -> 154 | H267: 154 | I267: 154 | J267: 154 | K267: 154 | L267: 154 | M267: 154 | N267: 154 | O267: 154 | P267: =O267 -> 154 | Q267: 154 | V267: =V265*V266 -> 134.88
E268: Netto resultaat Content Marketing | F268: =SUM(F266:F267) -> 2754 | G268: =SUM(G266:G267) -> 154 | H268: 154 | I268: 154 | J268: 154 | K268: 154 | L268: 154 | M268: 154 | N268: 154 | O268: 154 | P268: 154 | Q268: 154 | V268: =V267/12 -> 11.24
C269: Online advertenties
E270: Zoekmachine advertenties | F270: =VALUE(InputMarketing)/12 -> 166.6666667 | G270: =F270 -> 166.6666667 | H270: 166.6666667 | I270: 166.6666667 | J270: 166.6666667 | K270: 166.6666667 | L270: 166.6666667 | M270: 166.6666667 | N270: 166.6666667 | O270: 166.6666667 | P270: =O270 -> 166.6666667 | Q270: 166.6666667
E271: Sociale media advertenties | F271: =VALUE(InputMarketingSocial)/12 -> 41.66666667 | G271: =F271 -> 41.66666667 | H271: =G271 -> 41.66666667 | I271: =H271 -> 41.66666667 | J271: =I271 -> 41.66666667 | K271: =J271 -> 41.66666667 | L271: =K271 -> 41.66666667 | M271: =L271 -> 41.66666667 | N271: =M271 -> 41.66666667 | O271: =N271 -> 41.66666667 | P271: =O271 -> 41.66666667 | Q271: =P271 -> 41.66666667
E272: Netto resultaat Advertenties | F272: =SUM(F270:F271) -> 208.3333333 | G272: =SUM(G270:G271) -> 208.3333333 | H272: 208.3333333 | I272: 208.3333333 | J272: 208.3333333 | K272: 208.3333333 | L272: 208.3333333 | M272: 208.3333333 | N272: 208.3333333 | O272: 208.3333333 | P272: 208.3333333 | Q272: 208.3333333 | V272: =V271/12 -> 0
C273: =IF(VALUE(InputIncludeSiteShop)=1,IF(InputSiteShop=1,"Ontwikkeling van uw site","Ontwikkeling van uw e-shop"),"Ontwikkeling") -> Ontwikkeling van uw e-shop | V273: 10
E274: =IF(VALUE(InputIncludeSiteShop)=1,"Ontwikkeling","") -> Ontwikkeling | F274: =IF(VALUE(InputIncludeSiteShop)=1,IF(VALUE(InputBuyRent)=1,VALUE(InputDevCost),""),"") -> 20000
E275: =IF(VALUE(InputIncludeSiteShop)=1,"Onderhoud","") -> Onderhoud | F275: =IF(VALUE(InputIncludeSiteShop)=1,IF(VALUE(InputBuyRent)=1,VALUE(InputSlaCost)/12,""),"") -> 166.6666667 | G275: =F275 -> 166.6666667 | H275: 166.6666667 | I275: 166.6666667 | J275: 166.6666667 | K275: 166.6666667 | L275: 166.6666667 | M275: 166.6666667 | N275: 166.6666667 | O275: 166.6666667 | P275: 166.6666667 | Q275: 166.6666667
E276: =IF(VALUE(InputIncludeSiteShop)=1,"Hosting","") -> Hosting | F276: =IF(VALUE(InputIncludeSiteShop)=1,IF(VALUE(InputBuyRent)=1,VALUE(InputHostCost)/12,""),"") -> 166.6666667 | G276: =F276 -> 166.6666667 | H276: 166.6666667 | I276: 166.6666667 | J276: 166.6666667 | K276: 166.6666667 | L276: 166.6666667 | M276: 166.6666667 | N276: 166.6666667 | O276: 166.6666667 | P276: 166.6666667 | Q276: 166.6666667
E277: =IF(VALUE(InputIncludeSiteShop)=1,"Abonnement","") -> Abonnement | F277: =IF(VALUE(InputIncludeSiteShop)=1,IF(VALUE(InputBuyRent)=2,VALUE(InputRentCost),""),"") ->  | G277: =F277 ->  | P277: =O277 -> 
E278: Netto resultaat ontwikkeling | F278: =SUM(F274:F277) -> 20333.33333 | G278: =SUM(G274:G277) -> 333.3333333 | H278: 333.3333333 | I278: 333.3333333 | J278: 333.3333333 | K278: 333.3333333 | L278: 333.3333333 | M278: 333.3333333 | N278: 333.3333333 | O278: 333.3333333 | P278: 333.3333333 | Q278: 333.3333333
C279: Simulatie klantenevolutie
E280: Actieve klanten | F280: =VLOOKUP(InputKlanten,DATAKLANTENTABEL,2,0) -> 7500 | G280: =F280+((F281+F282+F283)*VLOOKUP(InputSector,SECTORDATA,5,0)) -> 7614.25491 | H280: 7730.123428 | I280: 7847.628343 | J280: 7966.792765 | K280: 8087.640131 | L280: 8210.19421 | M280: 8334.479106 | N280: 8460.519261 | O280: 8588.339466 | P280: 8717.964861 | Q280: 8849.420938
E281: Bezoekers n.a.v. marketing activiteiten | F281: =(F280*VALUE(FormuleMarketingImpact))-F280 -> 3530.719219 | G281: 3584.506153 | H281: 3639.052713 | I281: 3694.369628 | J281: 3750.467777 | K281: 3807.358193 | L281: 3865.052065 | M281: 3923.560741 | N281: 3982.895728 | O281: 4043.068695 | P281: 4104.091478 | Q281: 4165.976078
E282: Bezoekers n.a.v. sector evolutie | F282: =(F280*VALUE(FormuleVisitorsY1))-F280 -> 0 | G282: 0 | H282: 0 | I282: 0 | J282: 0 | K282: 0 | L282: 0 | M282: 0 | N282: 0 | O282: 0 | P282: 0 | Q282: 0
E283: Bezoekers n.a.v. online advertenties | F283: =F272/VLOOKUP(InputSector,SECTORDATA,22,0) -> 277.7777778 | G283: 277.7777778 | H283: 277.7777778 | I283: 277.7777778 | J283: 277.7777778 | K283: 277.7777778 | L283: 277.7777778 | M283: 277.7777778 | N283: 277.7777778 | O283: 277.7777778 | P283: 277.7777778 | Q283: 277.7777778
C284: =IF(InputSiteShop=2,"Simulatie van uw e-shop","") -> Simulatie van uw e-shop
E285: =IF(VALUE(InputIncludeSiteShop)=1,"Aantal verkopen","") -> Aantal verkopen | F285: =IF(InputIncludeSiteShop=1,IF(InputSiteShop=2,CEILING((F281+F282+F283)*VLOOKUP(InputSector,SECTORDATA,5,0)+((F280*VLOOKUP(InputSector,SECTORDATA,25,0)/12)),1),""),"") -> 1365 | G285: 1385 | H285: 1406 | I285: 1428 | J285: 1449 | K285: 1471 | L285: 1493 | M285: 1516 | N285: 1538 | O285: 1562 | P285: 1585 | Q285: 1609
E286: =IF(VALUE(InputIncludeSiteShop)=1,"Aantal retouren","") -> Aantal retouren | F286: =IF(InputIncludeSiteShop=1,IF(InputSiteShop=2,FLOOR((F285)*VLOOKUP(InputSector,SECTORDATA,11,0),1),""),"") -> 136 | G286: 138 | H286: 140 | I286: 142 | J286: 144 | K286: 147 | L286: 149 | M286: 151 | N286: 153 | O286: 156 | P286: 158 | Q286: 160
E287: =IF(VALUE(InputIncludeSiteShop)=1,"Omzet","") -> Omzet | F287: =IF(InputIncludeSiteShop=1,IF(InputSiteShop=2,CEILING((F285-F286)*VLOOKUP(InputSector,SECTORDATA,8,0),1),""),"") -> 61450 | G287: 62350 | H287: 63300 | I287: 64300 | J287: 65250 | K287: 66200 | L287: 67200 | M287: 68250 | N287: 69250 | O287: 70300 | P287: 71350 | Q287: 72450
E288: =IF(VALUE(InputIncludeSiteShop)=1,"Marge","") -> Marge | F288: =IF(InputIncludeSiteShop=1,IF(InputSiteShop=2,CEILING(F287*InputMarge/100,2),""),"") -> 30726 | G288: =IF(InputIncludeSiteShop=1,IF(InputSiteShop=2,CEILING(G287*InputMarge/100,2),""),"") -> 31176 | H288: 31650 | I288: 32150 | J288: 32626 | K288: 33100 | L288: 33600 | M288: 34126 | N288: 34626 | O288: 35150 | P288: 35676 | Q288: 36226
E289: =IF(VALUE(InputIncludeSiteShop)=1,"Kostprijs online betaling","") -> Kostprijs online betaling | F289: =IF(InputIncludeSiteShop=1,IF(InputSiteShop=2,CEILING((F285+2*F286)*VLOOKUP(InputSector,SECTORDATA,8,0)*VLOOKUP(InputSector,SECTORDATA,14,0),1),""),"") -> 1228 | G289: 1246 | H289: 1265 | I289: 1284 | J289: 1303 | K289: 1324 | L289: 1344 | M289: 1364 | N289: 1383 | O289: 1406 | P289: 1426 | Q289: 1447
E290: =IF(VALUE(InputIncludeSiteShop)=1,"Kostprijs productbeheer","") -> Kostprijs productbeheer | F290: =IF(InputIncludeSiteShop=1,IF(InputSiteShop=2,ROUND((VALUE(InputProducts)*(VALUE(InputUpdateTime)/60)*VALUE(InputProductRate))+((VALUE(InputProductChange)/12)*(VALUE(InputUpdateTime)/60)*VALUE(InputProductRate)),2),""),"") -> 2552.08 | G290: =IF(InputIncludeSiteShop=1,IF(InputSiteShop=2,ROUND((VALUE(InputProductChange)/12)*(VALUE(InputUpdateTime)/60)*VALUE(InputProductRate),2),""),"") -> 52.08 | H290: =G290 -> 52.08 | I290: 52.08 | J290: 52.08 | K290: 52.08 | L290: 52.08 | M290: 52.08 | N290: 52.08 | O290: 52.08 | P290: 52.08 | Q290: 52.08
E291: =IF(VALUE(InputIncludeSiteShop)=1,"Kostprijs logistiek","") -> Kostprijs logistiek | F291: =IF(InputIncludeSiteShop=1,IF(InputSiteShop=2,CEILING((F285+F286)*((100-VALUE(InputNoShipCosts))/100)*(VLOOKUP(InputSector,SECTORDATA,21,0)-InputSendCost),1)+CEILING((F286)*(VLOOKUP(InputSector,SECTORDATA,21,0)-InputRetourCost),1)+CEILING((F285+F286)*VLOOKUP(InputSector,SECTORDATA,18,0),1),""),"") -> 12852 | G291: 13041 | H291: 13237 | I291: 13443 | J291: 13640 | K291: 13854 | L291: 14060 | M291: 14274 | N291: 14479 | O291: 14710 | P291: 14924 | Q291: 15147
E292: Netto resultaat e-shop | F292: =IF(InputIncludeSiteShop=1,IF(InputSiteShop=2,F288-F289-F290-F291,0),0) -> 14093.92 | G292: =IF(InputIncludeSiteShop=1,IF(InputSiteShop=2,G288-G289-G290-G291,0),0) -> 16836.92 | H292: 17095.92 | I292: 17370.92 | J292: 17630.92 | K292: 17869.92 | L292: 18143.92 | M292: 18435.92 | N292: 18711.92 | O292: 18981.92 | P292: 19273.92 | Q292: 19579.92 | R292: 0
C293: Simulatie marktplaatsen
E294: =IF(InputIncludeMarkt=1,IF(LEN(InputMarktNaam1)>0,InputMarktNaam1,""),"") ->  | F294: =IF(InputIncludeMarkt=1,IF(VALUE(InputMarktOmzet1Y1)>0,((VALUE(InputMarktOmzet1Y1)*InputMarge/100)-(VALUE(InputMarktOmzet1Y1)*VALUE(InputMarktCom1)/100)-VALUE(InputMarktAbo1))/12,""),"") ->  | G294: =F294 ->  | P294: =O294 -> 
E295: =IF(InputIncludeMarkt=1,IF(LEN(InputMarktNaam2)>0,InputMarktNaam2,""),"") ->  | F295: =IF(InputIncludeMarkt=1,IF(VALUE(InputMarktOmzet2Y1)>0,((VALUE(InputMarktOmzet2Y1)*InputMarge/100)-(VALUE(InputMarktOmzet2Y1)*VALUE(InputMarktCom2)/100)-VALUE(InputMarktAbo2))/12,""),"") ->  | P295: =O295 -> 
E296: =IF(InputIncludeMarkt=1,IF(LEN(InputMarktNaam3)>0,InputMarktNaam3,""),"") ->  | F296: =IF(InputIncludeMarkt=1,IF(VALUE(InputMarktOmzet3Y1)>0,((VALUE(InputMarktOmzet3Y1)*InputMarge/100)-(VALUE(InputMarktOmzet3Y1)*VALUE(InputMarktCom3)/100)-VALUE(InputMarktAbo3))/12,""),"") ->  | P296: =O296 -> 
E297: =IF(InputIncludeMarkt=1,"Netto resultaat marktplaatsen","") ->  | F297: =IF(InputIncludeMarkt=1,SUM(F294:F296),"") -> 
C299: Netto Resultaat (*) | F299: =IF(InputIncludeMarkt=1,F297,0)+IF(InputIncludeSiteShop=1,IF(InputSiteShop=2,F292,0),0)-F278-F272-F268-F264-F259 -> -13074.2703 | G299: 14144.38179 | H299: 14400.36921 | I299: 14672.31408 | J299: 14929.21581 | K299: 15165.07378 | L299: 15435.88737 | M299: 15724.65596 | N299: 15997.37892 | O299: 16264.05559 | P299: 16552.68533 | Q299: 16855.26748
C300: (*) Het betreft enkel uw netto online resultaat. Uw online inspanningen zullen ook resulteren in verkoop in uw fysieke winkel.
B306: Uw financieel plan
B307: Meer tips en inspiratie op www.hetinternetookuwzaak.be
B308: Pagina 5 van 11
V311: Uw financieel plan
C313: Jaar 2
F314: m1 | G314: m2 | H314: m3 | I314: m4 | J314: m5 | K314: m6 | L314: m7 | M314: m8 | N314: m9 | O314: m10 | P314: m11 | Q314: m12
C315: Social Media
E316: Configuratie en onderhoud | F316: =IF(InputIncludeSocial=1,VLOOKUP(InputSector,SECTORDATA,32,0)*0.75,"") -> 1018.96704
E317: Plaatsen van berichten, foto's, … | F317: =IF(InputIncludeSocial=1,VLOOKUP(InputSector,SECTORDATA,40,0)*(52/12),"") -> 1381.81758 | G317: =F317 -> 1381.81758 | H317: 1381.81758 | I317: 1381.81758 | J317: 1381.81758 | K317: 1381.81758 | L317: 1381.81758 | M317: 1381.81758 | N317: 1381.81758 | O317: 1381.81758 | P317: 1381.81758 | Q317: 1381.81758
E318: Netto resultaat Sociale Media | F318: =SUM(F316:F317) -> 2400.78462 | G318: =SUM(G316:G317) -> 1381.81758 | H318: 1381.81758 | I318: 1381.81758 | J318: 1381.81758 | K318: 1381.81758 | L318: 1381.81758 | M318: 1381.81758 | N318: 1381.81758 | O318: 1381.81758 | P318: 1381.81758 | Q318: 1381.81758
C319: Email Marketing
E320: Configuratie en onderhoud | F320: =IF(InputIncludeEmail=1,VLOOKUP(InputSector,SECTORDATA,44,0)*0.75,"") -> 390
E321: Schrijven en versturen van emails | F321: =IF(InputIncludeEmail=1,VLOOKUP(InputSector,SECTORDATA,52,0)*(52/12),"") -> 327.7083333 | G321: =F321 -> 327.7083333 | H321: 327.7083333 | I321: 327.7083333 | J321: 327.7083333 | K321: 327.7083333 | L321: 327.7083333 | M321: 327.7083333 | N321: 327.7083333 | O321: 327.7083333 | P321: 327.7083333 | Q321: 327.7083333
E322: Abonnementskost | F322: =IF(InputIncludeEmail=1,(F339*FormuleEmailMultiplier*1.2%),"") -> 233.5510724 | G322: 237.0661521 | H322: 240.6308749 | I322: 244.2459417 | J322: 247.9120638 | K322: 251.629962 | L322: 255.4003676 | M322: 259.2240222 | N322: 263.1016779 | O322: 267.0340971 | P322: 271.0220535 | Q322: 275.0663312
E323: Netto resultaat Email Marketing | F323: =SUM(F320:F322) -> 951.2594057 | G323: =SUM(G320:G322) -> 564.7744854 | H323: 568.3392082 | I323: 571.9542751 | J323: 575.6203971 | K323: 579.3382953 | L323: 583.108701 | M323: 586.9323556 | N323: 590.8100112 | O323: 594.7424305 | P323: 598.7303868 | Q323: 602.7746646
C324: Content Marketing
E325: Configuratie en onderhoud | F325: =IF(InputIncludeBlog=1,VLOOKUP(InputSector,SECTORDATA,56,0)*0.75,"") -> 1950
E326: Schrijven voor en promoten van blog | F326: =IF(InputIncludeBlog=1,VLOOKUP(InputSector,SECTORDATA,64,0)*(52/12),"") -> 154 | G326: =F326 -> 154 | H326: 154 | I326: 154 | J326: 154 | K326: 154 | L326: 154 | M326: 154 | N326: 154 | O326: 154 | P326: 154 | Q326: 154
E327: Netto resultaat Blog | F327: =SUM(F325:F326) -> 2104 | G327: =SUM(G325:G326) -> 154 | H327: 154 | I327: 154 | J327: 154 | K327: 154 | L327: 154 | M327: 154 | N327: 154 | O327: 154 | P327: 154 | Q327: 154
C328: Online advertenties
E329: Zoekmachine advertenties | F329: =VALUE(InputMarketing)/12 -> 166.6666667 | G329: =F329 -> 166.6666667 | H329: 166.6666667 | I329: 166.6666667 | J329: 166.6666667 | K329: 166.6666667 | L329: 166.6666667 | M329: 166.6666667 | N329: 166.6666667 | O329: 166.6666667 | P329: 166.6666667 | Q329: 166.6666667
E330: Sociale media advertenties | F330: =VALUE(InputMarketingSocial)/12 -> 41.66666667 | G330: 41.66666667 | H330: 41.66666667 | I330: 41.66666667 | J330: 41.66666667 | K330: 41.66666667 | L330: 41.66666667 | M330: 41.66666667 | N330: 41.66666667 | O330: 41.66666667 | P330: 41.66666667 | Q330: 41.66666667
E331: Netto resultaat Advertenties | F331: =SUM(F329:F330) -> 208.3333333 | G331: =SUM(G329:G330) -> 208.3333333 | H331: 208.3333333 | I331: 208.3333333 | J331: 208.3333333 | K331: 208.3333333 | L331: 208.3333333 | M331: 208.3333333 | N331: 208.3333333 | O331: 208.3333333 | P331: 208.3333333 | Q331: 208.3333333
C332: =IF(VALUE(InputIncludeSiteShop)=1,IF(InputSiteShop=1,"Ontwikkeling van uw site","Ontwikkeling van uw e-shop"),"Ontwikkeling") -> Ontwikkeling van uw e-shop
E333: =IF(VALUE(InputIncludeSiteShop)=1,"Ontwikkeling","") -> Ontwikkeling
E334: =IF(VALUE(InputIncludeSiteShop)=1,"Onderhoud","") -> Onderhoud | F334: =IF(VALUE(InputIncludeSiteShop)=1,IF(VALUE(InputBuyRent)=1,VALUE(InputSlaCost)/12,""),"") -> 166.6666667 | G334: =F334 -> 166.6666667 | H334: 166.6666667 | I334: 166.6666667 | J334: 166.6666667 | K334: 166.6666667 | L334: 166.6666667 | M334: 166.6666667 | N334: 166.6666667 | O334: 166.6666667 | P334: 166.6666667 | Q334: 166.6666667
E335: =IF(VALUE(InputIncludeSiteShop)=1,"Hosting","") -> Hosting | F335: =IF(VALUE(InputIncludeSiteShop)=1,IF(VALUE(InputBuyRent)=1,VALUE(InputHostCost)/12,""),"") -> 166.6666667 | G335: =F335 -> 166.6666667 | H335: 166.6666667 | I335: 166.6666667 | J335: 166.6666667 | K335: 166.6666667 | L335: 166.6666667 | M335: 166.6666667 | N335: 166.6666667 | O335: 166.6666667 | P335: 166.6666667 | Q335: 166.6666667
... 147 more rows

Sheet _grafieken (hidden)
B1: cashflow
C2: ='Uw dossier'!F255 -> m1 | D2: ='Uw dossier'!G255 -> m2 | E2: ='Uw dossier'!H255 -> m3 | F2: ='Uw dossier'!I255 -> m4 | G2: ='Uw dossier'!J255 -> m5 | H2: ='Uw dossier'!K255 -> m6 | I2: ='Uw dossier'!L255 -> m7 | J2: ='Uw dossier'!M255 -> m8 | K2: ='Uw dossier'!N255 -> m9 | L2: ='Uw dossier'!O255 -> m10 | M2: ='Uw dossier'!P255 -> m11 | N2: ='Uw dossier'!Q255 -> m12 | O2: ='Uw dossier'!F314 -> m1 | P2: ='Uw dossier'!G314 -> m2 | Q2: ='Uw dossier'!H314 -> m3 | R2: ='Uw dossier'!I314 -> m4 | S2: ='Uw dossier'!J314 -> m5 | T2: ='Uw dossier'!K314 -> m6 | U2: ='Uw dossier'!L314 -> m7 | V2: ='Uw dossier'!M314 -> m8 | W2: ='Uw dossier'!N314 -> m9 | X2: ='Uw dossier'!O314 -> m10 | Y2: ='Uw dossier'!P314 -> m11 | Z2: ='Uw dossier'!Q314 -> m12 | AA2: ='Uw dossier'!F373 -> m1 | AB2: ='Uw dossier'!G373 -> m2 | AC2: ='Uw dossier'!H373 -> m3 | AD2: ='Uw dossier'!I373 -> m4 | AE2: ='Uw dossier'!J373 -> m5 | AF2: ='Uw dossier'!K373 -> m6 | AG2: ='Uw dossier'!L373 -> m7 | AH2: ='Uw dossier'!M373 -> m8 | AI2: ='Uw dossier'!N373 -> m9 | AJ2: ='Uw dossier'!O373 -> m10 | AK2: ='Uw dossier'!P373 -> m11 | AL2: ='Uw dossier'!Q373 -> m12
B3: omzet | C3: =IF(InputIncludeMarkt=1,'Uw dossier'!F297,0)+IF(InputIncludeSiteShop=1,IF(InputSiteShop=2,'Uw dossier'!F292,0),0) -> 14093.92 | D3: =IF(InputIncludeMarkt=1,'Uw dossier'!G297,0)+IF(InputIncludeSiteShop=1,IF(InputSiteShop=2,'Uw dossier'!G292,0),0) -> 16836.92 | E3: =IF(InputIncludeMarkt=1,'Uw dossier'!H297,0)+IF(InputIncludeSiteShop=1,IF(InputSiteShop=2,'Uw dossier'!H292,0),0) -> 17095.92 | F3: =IF(InputIncludeMarkt=1,'Uw dossier'!I297,0)+IF(InputIncludeSiteShop=1,IF(InputSiteShop=2,'Uw dossier'!I292,0),0) -> 17370.92 | G3: =IF(InputIncludeMarkt=1,'Uw dossier'!J297,0)+IF(InputIncludeSiteShop=1,IF(InputSiteShop=2,'Uw dossier'!J292,0),0) -> 17630.92 | H3: =IF(InputIncludeMarkt=1,'Uw dossier'!K297,0)+IF(InputIncludeSiteShop=1,IF(InputSiteShop=2,'Uw dossier'!K292,0),0) -> 17869.92 | I3: =IF(InputIncludeMarkt=1,'Uw dossier'!L297,0)+IF(InputIncludeSiteShop=1,IF(InputSiteShop=2,'Uw dossier'!L292,0),0) -> 18143.92 | J3: =IF(InputIncludeMarkt=1,'Uw dossier'!M297,0)+IF(InputIncludeSiteShop=1,IF(InputSiteShop=2,'Uw dossier'!M292,0),0) -> 18435.92 | K3: =IF(InputIncludeMarkt=1,'Uw dossier'!N297,0)+IF(InputIncludeSiteShop=1,IF(InputSiteShop=2,'Uw dossier'!N292,0),0) -> 18711.92 | L3: =IF(InputIncludeMarkt=1,'Uw dossier'!O297,0)+IF(InputIncludeSiteShop=1,IF(InputSiteShop=2,'Uw dossier'!O292,0),0) -> 18981.92 | M3: =IF(InputIncludeMarkt=1,'Uw dossier'!P297,0)+IF(InputIncludeSiteShop=1,IF(InputSiteShop=2,'Uw dossier'!P292,0),0) -> 19273.92 | N3: =IF(InputIncludeMarkt=1,'Uw dossier'!Q297,0)+IF(InputIncludeSiteShop=1,IF(InputSiteShop=2,'Uw dossier'!Q292,0),0) -> 19579.92 | O3: =IF(InputIncludeMarkt=1,'Uw dossier'!F374,0)+IF(InputIncludeSiteShop=1,IF(InputSiteShop=2,'Uw dossier'!F351,0),0) -> 19972.92 | P3: =IF(InputIncludeMarkt=1,'Uw dossier'!G374,0)+IF(InputIncludeSiteShop=1,IF(InputSiteShop=2,'Uw dossier'!G351,0),0) -> 20279.92 | Q3: =IF(InputIncludeMarkt=1,'Uw dossier'!H374,0)+IF(InputIncludeSiteShop=1,IF(InputSiteShop=2,'Uw dossier'!H351,0),0) -> 20568.92 | R3: =IF(InputIncludeMarkt=1,'Uw dossier'!I374,0)+IF(InputIncludeSiteShop=1,IF(InputSiteShop=2,'Uw dossier'!I351,0),0) -> 20894.92 | S3: =IF(InputIncludeMarkt=1,'Uw dossier'!J374,0)+IF(InputIncludeSiteShop=1,IF(InputSiteShop=2,'Uw dossier'!J351,0),0) -> 21197.92 | T3: =IF(InputIncludeMarkt=1,'Uw dossier'!K374,0)+IF(InputIncludeSiteShop=1,IF(InputSiteShop=2,'Uw dossier'!K351,0),0) -> 21536.92 | U3: =IF(InputIncludeMarkt=1,'Uw dossier'!L374,0)+IF(InputIncludeSiteShop=1,IF(InputSiteShop=2,'Uw dossier'!L351,0),0) -> 21842.92 | V3: =IF(InputIncludeMarkt=1,'Uw dossier'!M374,0)+IF(InputIncludeSiteShop=1,IF(InputSiteShop=2,'Uw dossier'!M351,0),0) -> 22146.92 | W3: =IF(InputIncludeMarkt=1,'Uw dossier'!N374,0)+IF(InputIncludeSiteShop=1,IF(InputSiteShop=2,'Uw dossier'!N351,0),0) -> 22502.92 | X3: =IF(InputIncludeMarkt=1,'Uw dossier'!O374,0)+IF(InputIncludeSiteShop=1,IF(InputSiteShop=2,'Uw dossier'!O351,0),0) -> 22838.92 | Y3: =IF(InputIncludeMarkt=1,'Uw dossier'!P374,0)+IF(InputIncludeSiteShop=1,IF(InputSiteShop=2,'Uw dossier'!P351,0),0) -> 23158.92 | Z3: =IF(InputIncludeMarkt=1,'Uw dossier'!Q374,0)+IF(InputIncludeSiteShop=1,IF(InputSiteShop=2,'Uw dossier'!Q351,0),0) -> 23495.92 | AA3: =IF(InputIncludeMarkt=1,'Uw dossier'!F415,0)+IF(InputIncludeSiteShop=1,IF(InputSiteShop=2,'Uw dossier'!F410,0),0) -> 23846.92 | AB3: =IF(InputIncludeMarkt=1,'Uw dossier'!G415,0)+IF(InputIncludeSiteShop=1,IF(InputSiteShop=2,'Uw dossier'!G410,0),0) -> 24233.92 | AC3: =IF(InputIncludeMarkt=1,'Uw dossier'!H415,0)+IF(InputIncludeSiteShop=1,IF(InputSiteShop=2,'Uw dossier'!H410,0),0) -> 24586.92 | AD3: =IF(InputIncludeMarkt=1,'Uw dossier'!I415,0)+IF(InputIncludeSiteShop=1,IF(InputSiteShop=2,'Uw dossier'!I410,0),0) -> 24953.92 | AE3: =IF(InputIncludeMarkt=1,'Uw dossier'!J415,0)+IF(InputIncludeSiteShop=1,IF(InputSiteShop=2,'Uw dossier'!J410,0),0) -> 25320.92 | AF3: =IF(InputIncludeMarkt=1,'Uw dossier'!K415,0)+IF(InputIncludeSiteShop=1,IF(InputSiteShop=2,'Uw dossier'!K410,0),0) -> 25705.92 | AG3: =IF(InputIncludeMarkt=1,'Uw dossier'!L415,0)+IF(InputIncludeSiteShop=1,IF(InputSiteShop=2,'Uw dossier'!L410,0),0) -> 26052.92 | AH3: =IF(InputIncludeMarkt=1,'Uw dossier'!M415,0)+IF(InputIncludeSiteShop=1,IF(InputSiteShop=2,'Uw dossier'!M410,0),0) -> 26436.92 | AI3: =IF(InputIncludeMarkt=1,'Uw dossier'!N415,0)+IF(InputIncludeSiteShop=1,IF(InputSiteShop=2,'Uw dossier'!N410,0),0) -> 26836.92 | AJ3: =IF(InputIncludeMarkt=1,'Uw dossier'!O415,0)+IF(InputIncludeSiteShop=1,IF(InputSiteShop=2,'Uw dossier'!O410,0),0) -> 27250.92 | AK3: =IF(InputIncludeMarkt=1,'Uw dossier'!P415,0)+IF(InputIncludeSiteShop=1,IF(InputSiteShop=2,'Uw dossier'!P410,0),0) -> 27649.92 | AL3: =IF(InputIncludeMarkt=1,'Uw dossier'!Q415,0)+IF(InputIncludeSiteShop=1,IF(InputSiteShop=2,'Uw dossier'!Q410,0),0) -> 28045.92
B4: kosten | C4: =-'Uw dossier'!F278-'Uw dossier'!F272-'Uw dossier'!F268-'Uw dossier'!F264-'Uw dossier'!F259 -> -27168.1903 | D4: =-'Uw dossier'!G278-'Uw dossier'!G272-'Uw dossier'!G268-'Uw dossier'!G264-'Uw dossier'!G259 -> -2692.538208 | E4: =-'Uw dossier'!H278-'Uw dossier'!H272-'Uw dossier'!H268-'Uw dossier'!H264-'Uw dossier'!H259 -> -2695.550789 | F4: =-'Uw dossier'!I278-'Uw dossier'!I272-'Uw dossier'!I268-'Uw dossier'!I264-'Uw dossier'!I259 -> -2698.605917 | G4: =-'Uw dossier'!J278-'Uw dossier'!J272-'Uw dossier'!J268-'Uw dossier'!J264-'Uw dossier'!J259 -> -2701.704192 | H4: =-'Uw dossier'!K278-'Uw dossier'!K272-'Uw dossier'!K268-'Uw dossier'!K264-'Uw dossier'!K259 -> -2704.846223 | I4: =-'Uw dossier'!L278-'Uw dossier'!L272-'Uw dossier'!L268-'Uw dossier'!L264-'Uw dossier'!L259 -> -2708.032629 | J4: =-'Uw dossier'!M278-'Uw dossier'!M272-'Uw dossier'!M268-'Uw dossier'!M264-'Uw dossier'!M259 -> -2711.264037 | K4: =-'Uw dossier'!N278-'Uw dossier'!N272-'Uw dossier'!N268-'Uw dossier'!N264-'Uw dossier'!N259 -> -2714.541081 | L4: =-'Uw dossier'!O278-'Uw dossier'!O272-'Uw dossier'!O268-'Uw dossier'!O264-'Uw dossier'!O259 -> -2717.864406 | M4: =-'Uw dossier'!P278-'Uw dossier'!P272-'Uw dossier'!P268-'Uw dossier'!P264-'Uw dossier'!P259 -> -2721.234666 | N4: =-'Uw dossier'!Q278-'Uw dossier'!Q272-'Uw dossier'!Q268-'Uw dossier'!Q264-'Uw dossier'!Q259 -> -2724.652524 | O4: =-'Uw dossier'!F318-'Uw dossier'!F323-'Uw dossier'!F327-'Uw dossier'!F331-'Uw dossier'!F337 -> -5997.710692 | P4: =-'Uw dossier'!G318-'Uw dossier'!G323-'Uw dossier'!G327-'Uw dossier'!G331-'Uw dossier'!G337 -> -2642.258732 | Q4: =-'Uw dossier'!H318-'Uw dossier'!H323-'Uw dossier'!H327-'Uw dossier'!H331-'Uw dossier'!H337 -> -2645.823455 | R4: =-'Uw dossier'!I318-'Uw dossier'!I323-'Uw dossier'!I327-'Uw dossier'!I331-'Uw dossier'!I337 -> -2649.438522 | S4: =-'Uw dossier'!J318-'Uw dossier'!J323-'Uw dossier'!J327-'Uw dossier'!J331-'Uw dossier'!J337 -> -2653.104644 | T4: =-'Uw dossier'!K318-'Uw dossier'!K323-'Uw dossier'!K327-'Uw dossier'!K331-'Uw dossier'!K337 -> -2656.822542 | U4: =-'Uw dossier'!L318-'Uw dossier'!L323-'Uw dossier'!L327-'Uw dossier'!L331-'Uw dossier'!L337 -> -2660.592948 | V4: =-'Uw dossier'!M318-'Uw dossier'!M323-'Uw dossier'!M327-'Uw dossier'!M331-'Uw dossier'!M337 -> -2664.416602 | W4: =-'Uw dossier'!N318-'Uw dossier'!N323-'Uw dossier'!N327-'Uw dossier'!N331-'Uw dossier'!N337 -> -2668.294258 | X4: =-'Uw dossier'!O318-'Uw dossier'!O323-'Uw dossier'!O327-'Uw dossier'!O331-'Uw dossier'!O337 -> -2672.226677 | Y4: =-'Uw dossier'!P318-'Uw dossier'!P323-'Uw dossier'!P327-'Uw dossier'!P331-'Uw dossier'!P337 -> -2676.214633 | Z4: =-'Uw dossier'!Q318-'Uw dossier'!Q323-'Uw dossier'!Q327-'Uw dossier'!Q331-'Uw dossier'!Q337 -> -2680.258911 | AA4: =-'Uw dossier'!F377-'Uw dossier'!F382-'Uw dossier'!F386-'Uw dossier'!F390-'Uw dossier'!F396 -> -4923.671666 | AB4: =-'Uw dossier'!G377-'Uw dossier'!G382-'Uw dossier'!G386-'Uw dossier'!G390-'Uw dossier'!G396 -> -2688.519624 | AC4: =-'Uw dossier'!H377-'Uw dossier'!H382-'Uw dossier'!H386-'Uw dossier'!H390-'Uw dossier'!H396 -> -2692.737684 | AD4: =-'Uw dossier'!I377-'Uw dossier'!I382-'Uw dossier'!I386-'Uw dossier'!I390-'Uw dossier'!I396 -> -2697.015314 | AE4: =-'Uw dossier'!J377-'Uw dossier'!J382-'Uw dossier'!J386-'Uw dossier'!J390-'Uw dossier'!J396 -> -2701.353357 | AF4: =-'Uw dossier'!K377-'Uw dossier'!K382-'Uw dossier'!K386-'Uw dossier'!K390-'Uw dossier'!K396 -> -2705.752666 | AG4: =-'Uw dossier'!L377-'Uw dossier'!L382-'Uw dossier'!L386-'Uw dossier'!L390-'Uw dossier'!L396 -> -2710.214106 | AH4: =-'Uw dossier'!M377-'Uw dossier'!M382-'Uw dossier'!M386-'Uw dossier'!M390-'Uw dossier'!M396 -> -2714.738554 | AI4: =-'Uw dossier'!N377-'Uw dossier'!N382-'Uw dossier'!N386-'Uw dossier'!N390-'Uw dossier'!N396 -> -2719.326901 | AJ4: =-'Uw dossier'!O377-'Uw dossier'!O382-'Uw dossier'!O386-'Uw dossier'!O390-'Uw dossier'!O396 -> -2723.980048 | AK4: =-'Uw dossier'!P377-'Uw dossier'!P382-'Uw dossier'!P386-'Uw dossier'!P390-'Uw dossier'!P396 -> -2728.69891 | AL4: =-'Uw dossier'!Q377-'Uw dossier'!Q382-'Uw dossier'!Q386-'Uw dossier'!Q390-'Uw dossier'!Q396 -> -2733.484417
B5: netto | C5: ='Uw dossier'!F299 -> -13074.2703 | D5: ='Uw dossier'!G299 -> 14144.38179 | E5: ='Uw dossier'!H299 -> 14400.36921 | F5: ='Uw dossier'!I299 -> 14672.31408 | G5: ='Uw dossier'!J299 -> 14929.21581 | H5: ='Uw dossier'!K299 -> 15165.07378 | I5: ='Uw dossier'!L299 -> 15435.88737 | J5: ='Uw dossier'!M299 -> 15724.65596 | K5: ='Uw dossier'!N299 -> 15997.37892 | L5: ='Uw dossier'!O299 -> 16264.05559 | M5: ='Uw dossier'!P299 -> 16552.68533 | N5: ='Uw dossier'!Q299 -> 16855.26748 | O5: ='Uw dossier'!F358 -> 13975.20931 | P5: ='Uw dossier'!G358 -> 17637.66127 | Q5: ='Uw dossier'!H358 -> 17923.09655 | R5: ='Uw dossier'!I358 -> 18245.48148 | S5: ='Uw dossier'!J358 -> 18544.81536 | T5: ='Uw dossier'!K358 -> 18880.09746 | U5: ='Uw dossier'!L358 -> 19182.32705 | V5: ='Uw dossier'!M358 -> 19482.5034 | W5: ='Uw dossier'!N358 -> 19834.62574 | X5: ='Uw dossier'!O358 -> 20166.69332 | Y5: ='Uw dossier'!P358 -> 20482.70537 | Z5: ='Uw dossier'!Q358 -> 20815.66109 | AA5: ='Uw dossier'!F417 -> 18923.24833 | AB5: ='Uw dossier'!G417 -> 21545.40038 | AC5: ='Uw dossier'!H417 -> 21894.18232 | AD5: ='Uw dossier'!I417 -> 22256.90469 | AE5: ='Uw dossier'!J417 -> 22619.56664 | AF5: ='Uw dossier'!K417 -> 23000.16733 | AG5: ='Uw dossier'!L417 -> 23342.70589 | AH5: ='Uw dossier'!M417 -> 23722.18145 | AI5: ='Uw dossier'!N417 -> 24117.5931 | AJ5: ='Uw dossier'!O417 -> 24526.93995 | AK5: ='Uw dossier'!P417 -> 24921.22109 | AL5: ='Uw dossier'!Q417 -> 25312.43558
B6: cashflow | C6: =C5 -> -13074.2703 | D6: =C6+D5 -> 1070.111492 | E6: =D6+E5 -> 15470.4807 | F6: 30142.79479 | G6: 45072.01059 | H6: 60237.08437 | I6: 75672.97174 | J6: 91397.6277 | K6: 107395.0066 | L6: 123659.0622 | M6: 140211.7476 | N6: 157067.015 | O6: 171042.2243 | P6: 188679.8856 | Q6: 206602.9821 | R6: 224848.4636 | S6: 243393.279 | T6: 262273.3764 | U6: 281455.7035 | V6: 300938.2069 | W6: 320772.8326 | X6: 340939.526 | Y6: 361422.2313 | Z6: 382237.8924 | AA6: 401161.1407 | AB6: 422706.5411 | AC6: 444600.7234 | AD6: 466857.6281 | AE6: 489477.1948 | AF6: 512477.3621 | AG6: 535820.068 | AH6: 559542.2494 | AI6: 583659.8425 | AJ6: 608186.7825 | AK6: 633108.0036 | AL6: 658420.4392
B8: klanten
C9: m1 | D9: m2 | E9: m3 | F9: m4 | G9: m5 | H9: m6 | I9: m7 | J9: m8 | K9: m9 | L9: m10 | M9: m11 | N9: m12 | O9: m1 | P9: m2 | Q9: m3 | R9: m4 | S9: m5 | T9: m6 | U9: m7 | V9: m8 | W9: m9 | X9: m10 | Y9: m11 | Z9: m12 | AA9: m1 | AB9: m2 | AC9: m3 | AD9: m4 | AE9: m5 | AF9: m6 | AG9: m7 | AH9: m8 | AI9: m9 | AJ9: m10 | AK9: m11 | AL9: m12
C10: ='Uw dossier'!F280 -> 7500 | D10: ='Uw dossier'!G280 -> 7614.25491 | E10: ='Uw dossier'!H280 -> 7730.123428 | F10: ='Uw dossier'!I280 -> 7847.628343 | G10: ='Uw dossier'!J280 -> 7966.792765 | H10: ='Uw dossier'!K280 -> 8087.640131 | I10: ='Uw dossier'!L280 -> 8210.19421 | J10: ='Uw dossier'!M280 -> 8334.479106 | K10: ='Uw dossier'!N280 -> 8460.519261 | L10: ='Uw dossier'!O280 -> 8588.339466 | M10: ='Uw dossier'!P280 -> 8717.964861 | N10: ='Uw dossier'!Q280 -> 8849.420938 | O10: ='Uw dossier'!F339 -> 8982.733554 | P10: ='Uw dossier'!G339 -> 9117.928927 | Q10: ='Uw dossier'!H339 -> 9255.033648 | R10: ='Uw dossier'!I339 -> 9394.074682 | S10: ='Uw dossier'!J339 -> 9535.079376 | T10: ='Uw dossier'!K339 -> 9678.075461 | U10: ='Uw dossier'!L339 -> 9823.091062 | V10: ='Uw dossier'!M339 -> 9970.154701 | W10: ='Uw dossier'!N339 -> 10119.2953 | X10: ='Uw dossier'!O339 -> 10270.5422 | Y10: ='Uw dossier'!P339 -> 10423.92513 | Z10: ='Uw dossier'!Q339 -> 10579.47428 | AA10: ='Uw dossier'!F398 -> 10737.22022 | AB10: ='Uw dossier'!G398 -> 10897.194 | AC10: ='Uw dossier'!H398 -> 11059.42706 | AD10: ='Uw dossier'!I398 -> 11223.95132 | AE10: ='Uw dossier'!J398 -> 11390.79913 | AF10: ='Uw dossier'!K398 -> 11560.00332 | AG10: ='Uw dossier'!L398 -> 11731.59716 | AH10: ='Uw dossier'!M398 -> 11905.61439 | AI10: ='Uw dossier'!N398 -> 12082.08925 | AJ10: ='Uw dossier'!O398 -> 12261.05645 | AK10: ='Uw dossier'!P398 -> 12442.55117 | AL10: ='Uw dossier'!Q398 -> 12626.60912

Sheet _datasheet (hidden)
B2: *****************************************************************************
B3: * *
B4: * Gelieve geen wijzigingen aan te brengen *
B5: * *
B6: * Alle rechten voorbehouden *
B7: * *
B8: *****************************************************************************
B10: Sector | E10: Gebaseerd op Comeos
B11: Boeken & E-boeken | C11: 1
B12: Entertainment | C12: 2
B13: Computer & Electronica | C13: 3
B14: Doe-het-zelf & Tuin | C14: 4
B15: Reizen & Ontspanning | C15: 5
B16: Financiële producten | C16: 6
B17: Voertuigen | C17: 7
B18: Dieren | C18: 8
B19: Huis & Interieur | C19: 9
B20: Mode | C20: 10
B21: Schoonheid & Gezondheid | C21: 11
B22: Speelgoed & Hobbies | C22: 12
B23: Sportartikelen | C23: 13
B24: Telecom | C24: 14
B25: Voeding | C25: 15
B26: Overige | C26: 16
B28: Turnover
B29: < €100.000 | C29: 1
B30: €100.000 … €250.000 | C30: 2
B31: €250.000 … €500.000 | C31: 3
B32: > €500.000 | C32: 4
B34: Customer
B35: Geen | C35: 1
B36: < 250 | C36: 2
B37: 250 … 1.000 | C37: 3
B38: 1.000 … 5.000 | C38: 4
B39: > 5.000 | C39: 5
B41: Customer visits per month
B42: 1 | C42: =50*2 -> 100
B43: 2
B44: 3
B45: 4
B46: 5
B48: Customer count
B49: 1 | C49: 50
B50: 2 | C50: 250
B51: 3 | C51: 1000
B52: 4 | C52: 2500
B53: 5 | C53: 7500
B55: CCOP 2017
B56: SPECIAL | C56: 1.25
B57: NO_VOLUME | C57: 0.5
B58: VOLUME | C58: 1.5
B59: NICHE | C59: 0.75
B60: NEUTRAL | C60: 1
B62: CFOP
B63: NEUTRAL | C63: 1
B64: STABLE | C64: 1.1
B65: BOOMING | C65: 1.25
B66: POTENTIAL | C66: 1.1
B67: LATENT | C67: 0.75
B69: COMPETITION
B70: NEUTRAL | C70: 1
B71: HIGH | C71: 0.75
B72: LOW | C72: 1.25
B74: Sociale Media
B75: Niet actief | C75: 1
B76: Aanwezig maar geen actief gebruik | C76: 2
B77: Aanwezig en actief gebruik | C77: 3
B78: Aanwezig en zowel actief als proactief gebruik | C78: 4
B80: Sociale Media Priority
B81: Elke dag | C81: 1
B82: Meerdere keren per week | C82: 2
B83: Elke week | C83: 3
B84: Meerdere keren per maand | C84: 4
B85: Elke maand | C85: 5
B87: Email marketing
B88: Niet actief | C88: 1
B89: Af en toe van eigen email adres | C89: 2
B90: Actief met een email platform | C90: 3
B92: Email marketing frequency
B93: Elke week | C93: 1
B94: Elke 2 weken | C94: 2
B95: Elke maand | C95: 3
B96: Elke 3 maanden | C96: 4
B97: Elke 6 maanden | C97: 5
B99: Blog
B100: Niet actief | C100: 1
B101: Er is een blog maar die wordt weinig actief gebruikt | C101: 2
B102: Actief gebruik | C102: 3
B104: Blog frequency
B105: Elke week | C105: 1
B106: Elke 2 weken | C106: 2
B107: Elke maand | C107: 3
B108: Elke 3 maanden | C108: 4
B109: Elke 6 maanden | C109: 5
B111: Product Range
B112: 100 | C112: 1
B113: 1000 | C113: 2
B114: 99999999 | C114: 3

Sheet _sector_data (hidden)
D2: E-commerce | AD2: SOCIAL MEDIA | AP2: EMAIL MARKETING | BB2: CONTENT MARKETING
B3: Sector | D3: Def. Conv. | E3: User Conv. | F3: Act. Conv | G3: Def. Order Value | H3: User Order Value | I3: Act. Order Value | J3: Def. Retour | K3: User Retour | L3: Act. Retour | M3: Def. Payment | N3: User Payment | O3: Actual Payment | P3: handling | Q3: packaging | R3: User Handle | S3: Act. Handle | T3: Def. shipment | U3: User Shipment | V3: Act. Shipment | W3: Av. CPC | X3: Av. CTR | Y3: Av. Aff. Cost | Z3: ord/cust | AA3: CCOP | AB3: CFOP | AC3: COMPETITION | AD3: Base Setup | AE3: Formula | AF3: Act. Setup | AG3: Setup Cost | AH3: Base Mngt | AI3: Formula | AJ3: Act. Mngt Y1 | AK3: Act. Mngt Cost Y1 | AL3: Base Mngt | AM3: Formula | AN3: Act. Mngt | AO3: Act. Mngt Cost Y2/3 | AP3: Base Setup | AQ3: Formula | AR3: Act. Setup | AS3: Setup Cost | AT3: Base Mngt | AU3: Formula | AV3: Act. Mngt | AW3: Act. Mngt Cost Y1 | AX3: Base Mngt | AY3: Formula | AZ3: Actual Mngt | BA3: Act. Mngt Cost Y2/3 | BB3: Base Setup | BC3: Formula | BD3: Act. Setup | BE3: Act. Setup Cost | BF3: Base Mngt | BG3: Formula | BH3: Act. Mngt | BI3: Act. Mngt Cost Y1 | BJ3: Base Mngt | BK3: Formula | BL3: Actual Mngt | BM3: Act. Mngt Cost Y2/3
B4: 1 | C4: Boeken & E-boeken | D4: 0.0286 | E4: =IF(LEN(PersonaliseConversion)>0,VALUE(PersonaliseConversion)/100,"") ->  | F4: =IF(LEN(E4)>0,E4,D4) -> 0.0286 | G4: 34 | H4: =IF(LEN(PersonaliseOrderValue)>0,VALUE(PersonaliseOrderValue),"") ->  | I4: =IF(LEN(H4)>0,H4,G4) -> 34 | J4: 0.13 | K4: =IF(LEN(PersonaliseRetour)>0,VALUE(PersonaliseRetour)/100,"") ->  | L4: =IF(LEN(K4)>0,K4,J4) -> 0.13 | M4: 0.015 | N4: =IF(LEN(PersonalisePayment)>0,VALUE(PersonalisePayment)/100,"") ->  | O4: =IF(LEN(N4)>0,N4,M4) -> 0.015 | P4: 2 | Q4: 1.5 | R4: =IF(LEN(PersonaliseHandle)>0,VALUE(PersonaliseHandle),"") ->  | S4: =IF(LEN(R4)>0,R4,P4+Q4) -> 3.5 | T4: 3.87 | U4: =IF(LEN(PersonaliseShipment)>0,VALUE(PersonaliseShipment),"") ->  | V4: =IF(LEN(U4)>0,U4,T4) -> 3.87 | W4: 0.75 | X4: 0.05 | Y4: 0.15 | Z4: 4.84 | AA4: VOLUME | AB4: BOOMING | AC4: NEUTRAL | AD4: 6 | AE4: =VALUE(FormuleSocialSetup) -> 4.5287424 | AF4: =AD4*AE4 -> 27.1724544 | AG4: =AF4*VALUE(InputSocialRate) -> 1358.62272 | AH4: 3 | AI4: =VALUE(FormuleSocialManagement) -> 2.1258732 | AJ4: =AH4*AI4 -> 6.3776196 | AK4: =AJ4*VALUE(InputSocialRate) -> 318.88098 | AL4: 3 | AM4: =VALUE(FormuleSocialManagementY2) -> 2.1258732 | AN4: =AL4*AM4 -> 6.3776196 | AO4: =AN4*VALUE(InputSocialRate) -> 318.88098 | AP4: 8 | AQ4: =VALUE(FormuleEmailSetup) -> 1.3 | AR4: =AP4*AQ4 -> 10.4 | AS4: =AR4*VALUE(InputEmailRate) -> 520 | AT4: 2.5 | AU4: =VALUE(FormuleEmailManagement) -> 0.77 | AV4: =AT4*AU4 -> 1.925 | AW4: =AV4*VALUE(InputEmailRate) -> 96.25 | AX4: 2.5 | AY4: =VALUE(FormuleEmailManagementY2) -> 0.605 | AZ4: =AX4*AY4 -> 1.5125 | BA4: =AZ4*VALUE(InputEmailRate) -> 75.625 | BB4: 40 | BC4: =VALUE(FormuleBlogSetup) -> 1.3 | BD4: =BB4*BC4 -> 52 | BE4: =BD4*VALUE(InputBlogRate) -> 2600 | BF4: 2 | BG4: =VALUE(FormuleBlogManagement) -> 0.3553846154 | BH4: =BF4*BG4 -> 0.7107692308 | BI4: =BH4*VALUE(InputBlogRate) -> 35.53846154 | BJ4: 2 | BK4: =VALUE(FormuleBlogManagementY2) -> 0.3553846154 | BL4: =BJ4*BK4 -> 0.7107692308 | BM4: =BL4*VALUE(InputBlogRate) -> 35.53846154
B5: 2 | C5: Entertainment | D5: 0.03 | F5: =IF(LEN(E5)>0,E5,D5) -> 0.03 | G5: 43 | I5: =IF(LEN(H5)>0,H5,G5) -> 43 | J5: 0.09 | L5: =IF(LEN(K5)>0,K5,J5) -> 0.09 | M5: 0.015 | O5: =IF(LEN(N5)>0,N5,M5) -> 0.015 | P5: 2 | Q5: 1.5 | S5: =IF(LEN(R5)>0,R5,P5+Q5) -> 3.5 | T5: 3.87 | V5: =IF(LEN(U5)>0,U5,T5) -> 3.87 | W5: 0.75 | X5: 0.05 | Y5: 0.15 | Z5: 5.09 | AA5: BOOMING | AB5: BOOMING | AC5: NEUTRAL | AD5: 6 | AE5: 4.5287424 | AF5: 27.1724544 | AG5: 1358.62272 | AH5: 3 | AI5: 2.1258732 | AJ5: =AH5*AI5 -> 6.3776196 | AK5: 318.88098 | AL5: 3 | AM5: 2.1258732 | AN5: =AL5*AM5 -> 6.3776196 | AO5: 318.88098 | AP5: 8 | AQ5: 1.3 | AR5: 10.4 | AS5: 520 | AT5: 2.5 | AU5: 0.77 | AV5: =AT5*AU5 -> 1.925 | AW5: 96.25 | AX5: 2.5 | AY5: 0.605 | AZ5: =AX5*AY5 -> 1.5125 | BA5: 75.625 | BB5: 40 | BC5: 1.3 | BD5: 52 | BE5: 2600 | BF5: 2 | BG5: 0.3553846154 | BH5: =BF5*BG5 -> 0.7107692308 | BI5: 35.53846154 | BJ5: 2 | BK5: 0.3553846154 | BL5: =BJ5*BK5 -> 0.7107692308 | BM5: 35.53846154
B6: 3 | C6: Computer & Electronica | D6: 0.05 | F6: 0.05 | G6: 269 | I6: 269 | J6: 0.1 | L6: 0.1 | M6: 0.015 | O6: 0.015 | P6: 3 | Q6: 2 | S6: 5 | T6: 3.87 | V6: 3.87 | W6: 0.75 | X6: 0.05 | Y6: 0.05 | Z6: 2.24 | AA6: SPECIAL | AB6: STABLE | AC6: NEUTRAL | AD6: 6 | AE6: 4.5287424 | AF6: 27.1724544 | AG6: 1358.62272 | AH6: 3 | AI6: 2.1258732 | AJ6: 6.3776196 | AK6: 318.88098 | AL6: 3 | AM6: 2.1258732 | AN6: 6.3776196 | AO6: 318.88098 | AP6: 8 | AQ6: 1.3 | AR6: 10.4 | AS6: 520 | AT6: 2.5 | AU6: 0.77 | AV6: 1.925 | AW6: 96.25 | AX6: 2.5 | AY6: 0.605 | AZ6: 1.5125 | BA6: 75.625 | BB6: 40 | BC6: 1.3 | BD6: 52 | BE6: 2600 | BF6: 2 | BG6: 0.3553846154 | BH6: 0.7107692308 | BI6: 35.53846154 | BJ6: 2 | BK6: 0.3553846154 | BL6: 0.7107692308 | BM6: 35.53846154
B7: 4 | C7: Doe-het-zelf & Tuin | D7: 0.03 | F7: 0.03 | G7: 147 | I7: 147 | J7: 0.07 | L7: 0.07 | M7: 0.015 | O7: 0.015 | P7: 4 | Q7: 2 | S7: 6 | T7: 5.87 | V7: 5.87 | W7: 0.75 | X7: 0.05 | Y7: 0.12 | Z7: 2.68 | AA7: NO_VOLUME | AB7: LATENT | AC7: NEUTRAL | AD7: 12 | AE7: 4.5287424 | AF7: 54.3449088 | AG7: 2717.24544 | AH7: 4 | AI7: 2.1258732 | AJ7: 8.5034928 | AK7: 425.17464 | AL7: 4 | AM7: 2.1258732 | AN7: 8.5034928 | AO7: 425.17464 | AP7: 8 | AQ7: 1.3 | AR7: 10.4 | AS7: 520 | AT7: 2.5 | AU7: 0.77 | AV7: 1.925 | AW7: 96.25 | AX7: 2.5 | AY7: 0.605 | AZ7: 1.5125 | BA7: 75.625 | BB7: 40 | BC7: 1.3 | BD7: 52 | BE7: 2600 | BF7: 2 | BG7: 0.3553846154 | BH7: 0.7107692308 | BI7: 35.53846154 | BJ7: 2 | BK7: 0.3553846154 | BL7: 0.7107692308 | BM7: 35.53846154
B8: 5 | C8: Reizen & Ontspanning | D8: 0.04 | F8: 0.04 | G8: 316 | I8: 316 | J8: 0.04 | L8: 0.04 | M8: 0.015 | O8: 0.015 | P8: 1 | Q8: 2 | S8: 3 | T8: 4.87 | V8: 4.87 | W8: 0.75 | X8: 0.05 | Y8: 0.12 | Z8: 3.17 | AA8: SPECIAL | AB8: NEUTRAL | AC8: NEUTRAL | AD8: 12 | AE8: 4.5287424 | AF8: 54.3449088 | AG8: 2717.24544 | AH8: 4 | AI8: 2.1258732 | AJ8: 8.5034928 | AK8: 425.17464 | AL8: 4 | AM8: 2.1258732 | AN8: 8.5034928 | AO8: 425.17464 | AP8: 8 | AQ8: 1.3 | AR8: 10.4 | AS8: 520 | AT8: 2.5 | AU8: 0.77 | AV8: 1.925 | AW8: 96.25 | AX8: 2.5 | AY8: 0.605 | AZ8: 1.5125 | BA8: 75.625 | BB8: 40 | BC8: 1.3 | BD8: 52 | BE8: 2600 | BF8: 2 | BG8: 0.3553846154 | BH8: 0.7107692308 | BI8: 35.53846154 | BJ8: 2 | BK8: 0.3553846154 | BL8: 0.7107692308 | BM8: 35.53846154
B9: 6 | C9: Financiële producten | D9: 0.1 | F9: 0.1 | G9: 60.84 | I9: 60.84 | J9: 0.06 | L9: 0.06 | M9: 0.015 | O9: 0.015 | P9: 0 | Q9: 0 | S9: 0 | T9: 0 | V9: 0 | W9: 0.75 | X9: 0.05 | Y9: 0.15 | Z9: 3.21 | AA9: NO_VOLUME | AB9: NEUTRAL | AC9: NEUTRAL | AD9: 6 | AE9: 4.5287424 | AF9: 27.1724544 | AG9: 1358.62272 | AH9: 3 | AI9: 2.1258732 | AJ9: 6.3776196 | AK9: 318.88098 | AL9: 3 | AM9: 2.1258732 | AN9: 6.3776196 | AO9: 318.88098 | AP9: 8 | AQ9: 1.3 | AR9: 10.4 | AS9: 520 | AT9: 2.5 | AU9: 0.77 | AV9: 1.925 | AW9: 96.25 | AX9: 2.5 | AY9: 0.605 | AZ9: 1.5125 | BA9: 75.625 | BB9: 40 | BC9: 1.3 | BD9: 52 | BE9: 2600 | BF9: 2 | BG9: 0.3553846154 | BH9: 0.7107692308 | BI9: 35.53846154 | BJ9: 2 | BK9: 0.3553846154 | BL9: 0.7107692308 | BM9: 35.53846154
B10: 7 | C10: Voertuigen | D10: 0.03 | F10: 0.03 | G10: 113.88 | I10: 113.88 | J10: 0.11 | L10: 0.11 | M10: 0.015 | O10: 0.015 | P10: 4 | Q10: 2 | S10: 6 | T10: 3.87 | V10: 3.87 | W10: 0.75 | X10: 0.05 | Y10: 0.15 | Z10: 2.34 | AA10: NO_VOLUME | AB10: NEUTRAL | AC10: NEUTRAL | AD10: 12 | AE10: 4.5287424 | AF10: 54.3449088 | AG10: 2717.24544 | AH10: 4 | AI10: 2.1258732 | AJ10: 8.5034928 | AK10: 425.17464 | AL10: 4 | AM10: 2.1258732 | AN10: 8.5034928 | AO10: 425.17464 | AP10: 8 | AQ10: 1.3 | AR10: 10.4 | AS10: 520 | AT10: 2.5 | AU10: 0.77 | AV10: 1.925 | AW10: 96.25 | AX10: 2.5 | AY10: 0.605 | AZ10: 1.5125 | BA10: 75.625 | BB10: 40 | BC10: 1.3 | BD10: 52 | BE10: 2600 | BF10: 2 | BG10: 0.3553846154 | BH10: 0.7107692308 | BI10: 35.53846154 | BJ10: 2 | BK10: 0.3553846154 | BL10: 0.7107692308 | BM10: 35.53846154
B11: 8 | C11: Dieren | D11: 0.03 | F11: 0.03 | G11: 83 | I11: 83 | J11: 0.08 | L11: 0.08 | M11: 0.015 | O11: 0.015 | P11: 4 | Q11: 2 | S11: 6 | T11: 4.87 | V11: 4.87 | W11: 0.75 | X11: 0.05 | Y11: 0.07 | Z11: 4.33 | AA11: NICHE | AB11: NEUTRAL | AC11: NEUTRAL | AD11: 12 | AE11: 4.5287424 | AF11: 54.3449088 | AG11: 2717.24544 | AH11: 4 | AI11: 2.1258732 | AJ11: 8.5034928 | AK11: 425.17464 | AL11: 4 | AM11: 2.1258732 | AN11: 8.5034928 | AO11: 425.17464 | AP11: 8 | AQ11: 1.3 | AR11: 10.4 | AS11: 520 | AT11: 2.5 | AU11: 0.77 | AV11: 1.925 | AW11: 96.25 | AX11: 2.5 | AY11: 0.605 | AZ11: 1.5125 | BA11: 75.625 | BB11: 40 | BC11: 1.3 | BD11: 52 | BE11: 2600 | BF11: 2 | BG11: 0.3553846154 | BH11: 0.7107692308 | BI11: 35.53846154 | BJ11: 2 | BK11: 0.3553846154 | BL11: 0.7107692308 | BM11: 35.53846154
B12: 9 | C12: Huis & Interieur | D12: 0.03 | F12: 0.03 | G12: 142 | I12: 142 | J12: 0.1 | L12: 0.1 | M12: 0.015 | O12: 0.015 | P12: 5 | Q12: 5 | S12: 10 | T12: 3.87 | V12: 3.87 | W12: 0.75 | X12: 0.05 | Y12: 0.12 | Z12: 2.16 | AA12: NO_VOLUME | AB12: LATENT | AC12: NEUTRAL | AD12: 6 | AE12: 4.5287424 | AF12: 27.1724544 | AG12: 1358.62272 | AH12: 4 | AI12: 2.1258732 | AJ12: 8.5034928 | AK12: 425.17464 | AL12: 4 | AM12: 2.1258732 | AN12: 8.5034928 | AO12: 425.17464 | AP12: 8 | AQ12: 1.3 | AR12: 10.4 | AS12: 520 | AT12: 2.5 | AU12: 0.77 | AV12: 1.925 | AW12: 96.25 | AX12: 2.5 | AY12: 0.605 | AZ12: 1.5125 | BA12: 75.625 | BB12: 40 | BC12: 1.3 | BD12: 52 | BE12: 2600 | BF12: 2 | BG12: 0.3553846154 | BH12: 0.7107692308 | BI12: 35.53846154 | BJ12: 2 | BK12: 0.3553846154 | BL12: 0.7107692308 | BM12: 35.53846154
B13: 10 | C13: Mode | D13: 0.03 | F13: 0.03 | G13: 74 | I13: 74 | J13: 0.29 | L13: 0.29 | M13: 0.015 | O13: 0.015 | P13: 3 | Q13: 1.5 | S13: 4.5 | T13: 3.87 | V13: 3.87 | W13: 0.75 | X13: 0.05 | Y13: 0.15 | Z13: 3.43 | AA13: SPECIAL | AB13: STABLE | AC13: NEUTRAL | AD13: 6 | AE13: 4.5287424 | AF13: 27.1724544 | AG13: 1358.62272 | AH13: 3 | AI13: 2.1258732 | AJ13: 6.3776196 | AK13: 318.88098 | AL13: 3 | AM13: 2.1258732 | AN13: 6.3776196 | AO13: 318.88098 | AP13: 8 | AQ13: 1.3 | AR13: 10.4 | AS13: 520 | AT13: 2.5 | AU13: 0.77 | AV13: 1.925 | AW13: 96.25 | AX13: 2.5 | AY13: 0.605 | AZ13: 1.5125 | BA13: 75.625 | BB13: 40 | BC13: 1.3 | BD13: 52 | BE13: 2600 | BF13: 2 | BG13: 0.3553846154 | BH13: 0.7107692308 | BI13: 35.53846154 | BJ13: 2 | BK13: 0.3553846154 | BL13: 0.7107692308 | BM13: 35.53846154
B14: 11 | C14: Schoonheid & Gezondheid | D14: 0.03 | F14: 0.03 | G14: 58 | I14: 58 | J14: 0.07 | L14: 0.07 | M14: 0.015 | O14: 0.015 | P14: 2 | Q14: 1.5 | S14: 3.5 | T14: 3.87 | V14: 3.87 | W14: 0.75 | X14: 0.05 | Y14: 0.15 | Z14: 3.7 | AA14: SPECIAL | AB14: BOOMING | AC14: NEUTRAL | AD14: 6 | AE14: 4.5287424 | AF14: 27.1724544 | AG14: 1358.62272 | AH14: 3 | AI14: 2.1258732 | AJ14: =AH14*AI14 -> 6.3776196 | AK14: 318.88098 | AL14: 3 | AM14: 2.1258732 | AN14: =AL14*AM14 -> 6.3776196 | AO14: 318.88098 | AP14: 8 | AQ14: 1.3 | AR14: 10.4 | AS14: 520 | AT14: 2.5 | AU14: 0.77 | AV14: =AT14*AU14 -> 1.925 | AW14: 96.25 | AX14: 2.5 | AY14: 0.605 | AZ14: =AX14*AY14 -> 1.5125 | BA14: 75.625 | BB14: 40 | BC14: 1.3 | BD14: 52 | BE14: 2600 | BF14: 2 | BG14: 0.3553846154 | BH14: =BF14*BG14 -> 0.7107692308 | BI14: 35.53846154 | BJ14: 2 | BK14: 0.3553846154 | BL14: =BJ14*BK14 -> 0.7107692308 | BM14: 35.53846154
B15: 12 | C15: Speelgoed & Hobbies | D15: 0.03 | F15: 0.03 | G15: 84 | I15: 84 | J15: 0.1 | L15: 0.1 | M15: 0.015 | O15: 0.015 | P15: 3 | Q15: 1.5 | S15: 4.5 | T15: 3.87 | V15: 3.87 | W15: 0.75 | X15: 0.05 | Y15: 0.15 | Z15: 2.94 | AA15: NO_VOLUME | AB15: BOOMING | AC15: NEUTRAL | AD15: 6 | AE15: 4.5287424 | AF15: 27.1724544 | AG15: 1358.62272 | AH15: 3 | AI15: 2.1258732 | AJ15: 6.3776196 | AK15: 318.88098 | AL15: 3 | AM15: 2.1258732 | AN15: 6.3776196 | AO15: 318.88098 | AP15: 8 | AQ15: 1.3 | AR15: 10.4 | AS15: 520 | AT15: 2.5 | AU15: 0.77 | AV15: 1.925 | AW15: 96.25 | AX15: 2.5 | AY15: 0.605 | AZ15: 1.5125 | BA15: 75.625 | BB15: 40 | BC15: 1.3 | BD15: 52 | BE15: 2600 | BF15: 2 | BG15: 0.3553846154 | BH15: 0.7107692308 | BI15: 35.53846154 | BJ15: 2 | BK15: 0.3553846154 | BL15: 0.7107692308 | BM15: 35.53846154
B16: 13 | C16: Sportartikelen | D16: 0.03 | F16: 0.03 | G16: 87 | I16: 87 | J16: 0.16 | L16: 0.16 | M16: 0.015 | O16: 0.015 | P16: 3 | Q16: 2 | S16: 5 | T16: 3.87 | V16: 3.87 | W16: 0.64 | X16: 0.05 | Y16: 0.15 | Z16: 2.45 | AA16: NO_VOLUME | AB16: POTENTIAL | AC16: NEUTRAL | AD16: 9 | AE16: 4.5287424 | AF16: 40.7586816 | AG16: 2037.93408 | AH16: 4 | AI16: 2.1258732 | AJ16: 8.5034928 | AK16: 425.17464 | AL16: 4 | AM16: 2.1258732 | AN16: 8.5034928 | AO16: 425.17464 | AP16: 8 | AQ16: 1.3 | AR16: 10.4 | AS16: 520 | AT16: 2.5 | AU16: 0.77 | AV16: 1.925 | AW16: 96.25 | AX16: 2.5 | AY16: 0.605 | AZ16: 1.5125 | BA16: 75.625 | BB16: 40 | BC16: 1.3 | BD16: 52 | BE16: 2600 | BF16: 2 | BG16: 0.3553846154 | BH16: 0.7107692308 | BI16: 35.53846154 | BJ16: 2 | BK16: 0.3553846154 | BL16: 0.7107692308 | BM16: 35.53846154
B17: 14 | C17: Telecom | D17: 0.03 | F17: 0.03 | G17: 64 | I17: 64 | J17: 0.07 | L17: 0.07 | M17: 0.015 | O17: 0.015 | P17: 1 | Q17: 1.5 | S17: 2.5 | T17: 3.87 | V17: 3.87 | W17: 0.75 | X17: 0.05 | Y17: 0.07 | Z17: 4.61 | AA17: NICHE | AB17: POTENTIAL | AC17: NEUTRAL | AD17: 6 | AE17: 4.5287424 | AF17: 27.1724544 | AG17: 1358.62272 | AH17: 3 | AI17: 2.1258732 | AJ17: 6.3776196 | AK17: 318.88098 | AL17: 3 | AM17: 2.1258732 | AN17: 6.3776196 | AO17: 318.88098 | AP17: 8 | AQ17: 1.3 | AR17: 10.4 | AS17: 520 | AT17: 2.5 | AU17: 0.77 | AV17: 1.925 | AW17: 96.25 | AX17: 2.5 | AY17: 0.605 | AZ17: 1.5125 | BA17: 75.625 | BB17: 40 | BC17: 1.3 | BD17: 52 | BE17: 2600 | BF17: 2 | BG17: 0.3553846154 | BH17: 0.7107692308 | BI17: 35.53846154 | BJ17: 2 | BK17: 0.3553846154 | BL17: 0.7107692308 | BM17: 35.53846154
B18: 15 | C18: Voeding | D18: 0.03 | F18: 0.03 | G18: 71 | I18: 71 | J18: 0.07 | L18: 0.07 | M18: 0.015 | O18: 0.015 | P18: 7 | Q18: 4 | S18: 11 | T18: 3.87 | V18: 3.87 | W18: 0.75 | X18: 0.05 | Y18: 0.15 | Z18: 7.87 | AA18: NICHE | AB18: POTENTIAL | AC18: NEUTRAL | AD18: 9 | AE18: 4.5287424 | AF18: 40.7586816 | AG18: 2037.93408 | AH18: 4 | AI18: 2.1258732 | AJ18: 8.5034928 | AK18: 425.17464 | AL18: 4 | AM18: 2.1258732 | AN18: 8.5034928 | AO18: 425.17464 | AP18: 8 | AQ18: 1.3 | AR18: 10.4 | AS18: 520 | AT18: 2.5 | AU18: 0.77 | AV18: 1.925 | AW18: 96.25 | AX18: 2.5 | AY18: 0.605 | AZ18: 1.5125 | BA18: 75.625 | BB18: 40 | BC18: 1.3 | BD18: 52 | BE18: 2600 | BF18: 2 | BG18: 0.3553846154 | BH18: 0.7107692308 | BI18: 35.53846154 | BJ18: 2 | BK18: 0.3553846154 | BL18: 0.7107692308 | BM18: 35.53846154
B19: 16 | C19: Overige | D19: 0.03 | F19: 0.03 | G19: 50 | I19: 50 | J19: 0.1 | L19: 0.1 | M19: 0.015 | O19: 0.015 | P19: 3 | Q19: 2 | S19: 5 | T19: 3.87 | V19: 3.87 | W19: 0.75 | X19: 0.05 | Y19: 0.18 | Z19: 2 | AA19: NEUTRAL | AB19: NEUTRAL | AC19: NEUTRAL | AD19: 6 | AE19: 4.5287424 | AF19: 27.1724544 | AG19: 1358.62272 | AH19: 3 | AI19: 2.1258732 | AJ19: 6.3776196 | AK19: 318.88098 | AL19: 3 | AM19: 2.1258732 | AN19: 6.3776196 | AO19: 318.88098 | AP19: 8 | AQ19: 1.3 | AR19: 10.4 | AS19: 520 | AT19: 2.5 | AU19: 0.77 | AV19: 1.925 | AW19: 96.25 | AX19: 2.5 | AY19: 0.605 | AZ19: 1.5125 | BA19: 75.625 | BB19: 40 | BC19: 1.3 | BD19: 52 | BE19: 2600 | BF19: 2 | BG19: 0.3553846154 | BH19: 0.7107692308 | BI19: 35.53846154 | BJ19: 2 | BK19: 0.3553846154 | BL19: 0.7107692308 | BM19: 35.53846154
D22: 3 | E22: 4 | F22: 5 | G22: 6 | H22: 7 | I22: 8 | J22: 9 | K22: 10 | L22: 11 | M22: 12 | N22: 13 | O22: 14 | P22: 15 | Q22: 16 | R22: 17 | S22: 18 | T22: 19 | U22: 20 | V22: 21 | W22: 22 | X22: 23 | Y22: 24 | Z22: 25 | AA22: 26 | AB22: 27 | AC22: 28 | AD22: 29 | AE22: 30 | AF22: 31 | AG22: 32 | AH22: 33 | AI22: 34 | AJ22: 35 | AK22: 36 | AL22: 37 | AM22: 38 | AN22: 39 | AO22: 40 | AP22: 41 | AQ22: 42 | AR22: 43 | AS22: 44 | AT22: 45 | AU22: 46 | AV22: 47 | AW22: 48 | AX22: 49 | AY22: 50 | AZ22: 51 | BA22: 52 | BB22: 53 | BC22: 54 | BD22: 55 | BE22: 56 | BF22: 57 | BG22: 58 | BH22: 59 | BI22: 60 | BJ22: 61 | BK22: 62 | BL22: 63 | BM22: 64

Sheet _sector_formules (hidden)
A2: Calculate impact of user provided information on Social Media cost
B4: x) Use of Social Media
B5: Is social media in scope?
C7: Include | D7: Setup Impact | E7: Mngmt Factor | F7: Mngmt Y2
C8: 0 | D8: 0 | E8: 0 | F8: 0 | G8: (exclude)
C9: 1 | D9: 1 | E9: 1 | F9: 1 | G9: (include)
B11: Impact on Setup | C11: =VLOOKUP(VALUE(InputIncludeSocial),C8:F9,2,0) -> 1
B12: Impact on Management | C12: =VLOOKUP(VALUE(InputIncludeSocial),C8:F9,3,0) -> 1
B13: Impact on ManagementY2 | C13: =VLOOKUP(VALUE(InputIncludeSocial),C8:F9,4,0) -> 1
B15: x) Number of Social Media channels
B16: How many channels are in scope
C18: #channels | D18: Setup Impact | E18: Mngmt Factor | F18: Mngmt Y2
C19: 0 | D19: 0 | E19: 0 | F19: 0
C20: 1 | D20: 1 | E20: 1 | F20: 1
C21: 2 | D21: 1.1 | E21: 1.1 | F21: 1.1
C22: 3 | D22: 1.2 | E22: 1.15 | F22: 1.15
C23: 4 | D23: 1.3 | E23: 1.2 | F23: 1.2
C24: 5 | D24: 1.4 | E24: 1.2 | F24: 1.2
B26: Impact on Setup | C26: =VLOOKUP(VALUE(InputSocialChannelCount),C19:F24,2,0) -> 1.4
B27: Impact on Management | C27: =VLOOKUP(VALUE(InputSocialChannelCount),C19:F24,3,0) -> 1.2
B28: Impact on ManagementY2 | C28: =VLOOKUP(VALUE(InputSocialChannelCount),C19:F24,4,0) -> 1.2
B30: x) Products
B31: What is the sector independent impact of the number of products on the setup and the management of social media channels?
C33: # Products | D33: Setup Impact | E33: Mngmt Factor | F33: Mngmt Y2
C34: 1 | D34: 1 | E34: 1 | F34: 1 | G34: (low # of products)
C35: 2 | D35: 1 | E35: 1 | F35: 1 | G35: (average # of products)
C36: 3 | D36: 1 | E36: 1 | F36: 1 | G36: (large # of products)
B38: Impact on Setup | C38: =VLOOKUP(IF(VALUE(InputProducts)<OFFSET(LIST_PRODUCTRANGE,0,0,1,1),1,IF(VALUE(InputProducts)<OFFSET(LIST_PRODUCTRANGE,1,0,1,1),2,3)),C34:F36,2,0) -> 1
B39: Impact on Management | C39: =VLOOKUP(IF(VALUE(InputProducts)<OFFSET(LIST_PRODUCTRANGE,0,0,1,1),1,IF(VALUE(InputProducts)<OFFSET(LIST_PRODUCTRANGE,1,0,1,1),2,3)),C34:F36,3,0) -> 1
B40: Impact on ManagementY2 | C40: =VLOOKUP(IF(VALUE(InputProducts)<OFFSET(LIST_PRODUCTRANGE,0,0,1,1),1,IF(VALUE(InputProducts)<OFFSET(LIST_PRODUCTRANGE,1,0,1,1),2,3)),C34:F36,4,0) -> 1
B42: x) Turnover
B43: What is the sector independent impact of the company turnover on the setup and the management of social media channels?
C45: Turnover | D45: Setup Impact | E45: Mngmt Factor | F45: Mngmt Y2
C46: 1 | D46: 1 | E46: 1 | F46: 1 | G46: (low turnover)
C47: 2 | D47: 1 | E47: 1 | F47: 1 | G47: (average turnover)
C48: 3 | D48: 1 | E48: 1 | F48: 1 | G48: (high turnover)
C49: 4 | D49: 1 | E49: 1 | F49: 1 | G49: (highest turnover)
B51: Impact on Setup | C51: =VLOOKUP(VALUE(InputTurnover),C46:F49,2,0) -> 1
B52: Impact on Management | C52: =VLOOKUP(VALUE(InputTurnover),C46:F49,3,0) -> 1
B53: Impact on ManagementY2 | C53: =VLOOKUP(VALUE(InputTurnover),C46:F49,4,0) -> 1
B55: x) Customers
B56: What is the sector independent impact of the number of customers on the setup and the management of social media channels?
C58: # Customers | D58: Setup Impact | E58: Mngmt Factor | F58: Mngmt Y2
C59: 1 | D59: 1 | E59: 1 | F59: 1 | G59: (no customers)
C60: 2 | D60: 1 | E60: 1 | F60: 1 | G60: (low # of customers)
C61: 3 | D61: 1 | E61: 1 | F61: 1 | G61: (average # of customers)
C62: 4 | D62: 1 | E62: 1 | F62: 1 | G62: (large # of customers)
C63: 5 | D63: 1 | E63: 1 | F63: 1 | G63: (largest # of customers)
B65: Impact on Setup | C65: =VLOOKUP(VALUE(InputKlanten),C59:F63,2,0) -> 1
B66: Impact on Management | C66: =VLOOKUP(VALUE(InputKlanten),C59:F63,3,0) -> 1
B67: Impact on ManagementY2 | C67: =VLOOKUP(VALUE(InputKlanten),C59:F63,4,0) -> 1
B69: x) Languages
B70: What is the sector independent impact of the number of languages on the setup and the management of social media channels?
C72: # Languages | D72: Setup Impact | E72: Mngmt Factor | F72: Mngmt Y2
C73: 0 | D73: 0 | E73: 0 | F73: 0 | G73: (no languages)
C74: 1 | D74: 1 | E74: 1 | F74: 1 | G74: (1 language)
C75: 2 | D75: 1.3 | E75: 1.1 | F75: 1.1 | G75: (2 languages)
C76: 3 | D76: 1.6 | E76: 1.2 | F76: 1.2 | G76: (3 languages)
C77: 4 | D77: 1.9 | E77: 1.3 | F77: 1.3 | G77: (4 languages)
B79: Impact on Setup | C79: =VLOOKUP(VALUE(InputSocialLanguages),C73:F77,2,0) -> 1.3
B80: Impact on Management | C80: =VLOOKUP(VALUE(InputSocialLanguages),C73:F77,3,0) -> 1.1
B81: Impact on ManagementY2 | C81: =VLOOKUP(VALUE(InputSocialLanguages),C73:F77,4,0) -> 1.1
B83: x) Current activity
B84: What is the sector independent impact of the current social media activity on the setup and the management of social media channels?
C86: Activity | D86: Setup Impact | E86: Mngmt Factor | F86: Mngmt Y2
C87: 1 | D87: 1.2 | E87: 1.1 | F87: 1.1 | G87: (not active)
C88: 2 | D88: 1.1 | E88: 1.05 | F88: 1 | G88: (present but not used)
C89: 3 | D89: 1 | E89: 1 | F89: 0.9 | G89: (used with average skill)
C90: 4 | D90: 1 | E90: 0.8 | F90: 0.75 | G90: (used as a pro)
B92: Impact on Setup | C92: =IF(IncludeFacebook=1,VLOOKUP(VALUE(StatusFacebook),C87:F90,2,0),1)*IF(IncludeLinkedIn=1,VLOOKUP(VALUE(StatusLinkedIn),C87:F90,2,0),1)*IF(IncludeTwitter=1,VLOOKUP(VALUE(StatusTwitter),C87:F90,2,0),1)*IF(IncludeInstagram=1,VLOOKUP(VALUE(StatusInstagram),C87:F90,2,0),1)*IF(IncludePinterest=1,VLOOKUP(VALUE(StatusPinterest),C87:F90,2,0),1) -> 2.48832
B93: Impact on Management | C93: =IF(IncludeFacebook=1,VLOOKUP(VALUE(StatusFacebook),C87:F90,3,0),1)*IF(IncludeLinkedIn=1,VLOOKUP(VALUE(StatusLinkedIn),C87:F90,3,0),1)*IF(IncludeTwitter=1,VLOOKUP(VALUE(StatusTwitter),C87:F90,3,0),1)*IF(IncludeInstagram=1,VLOOKUP(VALUE(StatusInstagram),C87:F90,3,0),1)*IF(IncludePinterest=1,VLOOKUP(VALUE(StatusPinterest),C87:F90,3,0),1) -> 1.61051
B94: Impact on ManagementY2 | C94: =IF(IncludeFacebook=1,VLOOKUP(VALUE(StatusFacebook),C87:F90,4,0),1)*IF(IncludeLinkedIn=1,VLOOKUP(VALUE(StatusLinkedIn),C87:F90,4,0),1)*IF(IncludeTwitter=1,VLOOKUP(VALUE(StatusTwitter),C87:F90,4,0),1)*IF(IncludeInstagram=1,VLOOKUP(VALUE(StatusInstagram),C87:F90,4,0),1)*IF(IncludePinterest=1,VLOOKUP(VALUE(StatusPinterest),C87:F90,4,0),1) -> 1.61051
B96: x) Frequentie
B97: What is the sector independent impact of the frequency of posting on the setup and the management of social media?
C99: Frequency | D99: Setup Impact | E99: Mngmt Factor | F99: Mngmt Y2
C100: 1 | D100: 1 | E100: 1.2 | F100: 1.1 | G100: (elke dag)
C101: 2 | D101: 1 | E101: 1.1 | F101: 1.05 | G101: (meerder keren per week)
C102: 3 | D102: 1 | E102: 1 | F102: 1 | G102: (elke week)
C103: 4 | D103: 1 | E103: 0.9 | F103: 0.85 | G103: (enkele keren per maand)
C104: 5 | D104: 1 | E104: 0.8 | F104: 0.75 | G104: (elke maand)
B106: Impact on Setup | C106: =IF(IncludeFacebook=1,VLOOKUP(VALUE(FutureFacebook),C100:F104,2,0),1)*IF(IncludeLinkedIn=1,VLOOKUP(VALUE(FutureLinkedIn),C100:F104,2,0),1)*IF(IncludeTwitter=1,VLOOKUP(VALUE(FutureTwitter),C100:F104,2,0),1)*IF(IncludeInstagram=1,VLOOKUP(VALUE(FutureInstagram),C100:F104,2,0),1)*IF(IncludePinterest=1,VLOOKUP(VALUE(FuturePinterest),C100:F104,2,0),1) -> 1
B107: Impact on Management | C107: =IF(IncludeFacebook=1,VLOOKUP(VALUE(FutureFacebook),C100:F104,3,0),1)*IF(IncludeLinkedIn=1,VLOOKUP(VALUE(FutureLinkedIn),C100:F104,3,0),1)*IF(IncludeTwitter=1,VLOOKUP(VALUE(FutureTwitter),C100:F104,3,0),1)*IF(IncludeInstagram=1,VLOOKUP(VALUE(FutureInstagram),C100:F104,3,0),1)*IF(IncludePinterest=1,VLOOKUP(VALUE(FuturePinterest),C100:F104,3,0),1) -> 1
B108: Impact on ManagementY2 | C108: =IF(IncludeFacebook=1,VLOOKUP(VALUE(FutureFacebook),C100:F104,4,0),1)*IF(IncludeLinkedIn=1,VLOOKUP(VALUE(FutureLinkedIn),C100:F104,4,0),1)*IF(IncludeTwitter=1,VLOOKUP(VALUE(FutureTwitter),C100:F104,4,0),1)*IF(IncludeInstagram=1,VLOOKUP(VALUE(FutureInstagram),C100:F104,4,0),1)*IF(IncludePinterest=1,VLOOKUP(VALUE(FuturePinterest),C100:F104,4,0),1) -> 1
B110: x) TOTAL IMPACT SOCIAL MEDIA
B112: Impact on Setup | C112: =C11*C26*C38*C51*C65*C79*C92*C106 -> 4.5287424
B113: Impact on Management | C113: =C12*C27*C39*C52*C66*C80*C93*C107 -> 2.1258732
B114: Impact on Management Y2 | C114: =C13*C28*C40*C53*C67*C81*C94*C108 -> 2.1258732
A116: Calculate impact of user provided information onEmail marketing cost
B118: x) Include
B119: Is email marketing in scope?
C121: Include | D121: Setup Impact | E121: Mngmt Factor | F121: Mngmt Y2
C122: 0 | D122: 0 | E122: 0 | F122: 0 | G122: (exclude)
C123: 1 | D123: 1 | E123: 1 | F123: 1 | G123: (include)
B125: Impact on Setup | C125: =VLOOKUP(VALUE(InputIncludeEmail),C122:F123,2,0) -> 1
B126: Impact on Management | C126: =VLOOKUP(VALUE(InputIncludeEmail),C122:F123,3,0) -> 1
B127: Impact on ManagementY2 | C127: =VLOOKUP(VALUE(InputIncludeEmail),C122:F123,4,0) -> 1
B129: x) Products
B130: What is the sector independent impact of the number of products on the setup and the management of social media channels?
C132: # Products | D132: Setup Impact | E132: Mngmt Factor | F132: Mngmt Y2
C133: 1 | D133: 1 | E133: 1 | F133: 1 | G133: (low # of products)
C134: 2 | D134: 1 | E134: 1 | F134: 1 | G134: (average # of products)
C135: 3 | D135: 1 | E135: 1 | F135: 1 | G135: (large # of products)
B137: Impact on Setup | C137: =VLOOKUP(IF(VALUE(InputProducts)<OFFSET(LIST_PRODUCTRANGE,0,0,1,1),1,IF(VALUE(InputProducts)<OFFSET(LIST_PRODUCTRANGE,1,0,1,1),2,3)),C133:F135,2,0) -> 1
B138: Impact on Management | C138: =VLOOKUP(IF(VALUE(InputProducts)<OFFSET(LIST_PRODUCTRANGE,0,0,1,1),1,IF(VALUE(InputProducts)<OFFSET(LIST_PRODUCTRANGE,1,0,1,1),2,3)),C133:F135,3,0) -> 1
B139: Impact on ManagementY2 | C139: =VLOOKUP(IF(VALUE(InputProducts)<OFFSET(LIST_PRODUCTRANGE,0,0,1,1),1,IF(VALUE(InputProducts)<OFFSET(LIST_PRODUCTRANGE,1,0,1,1),2,3)),C133:F135,4,0) -> 1
B141: x) Turnover
B142: What is the sector independent impact of the company turnover on the setup and the management of social media channels?
C144: Turnover | D144: Setup Impact | E144: Mngmt Factor | F144: Mngmt Y2
C145: 1 | D145: 1 | E145: 1 | F145: 1 | G145: (low turnover)
C146: 2 | D146: 1 | E146: 1 | F146: 1 | G146: (average turnover)
C147: 3 | D147: 1 | E147: 1 | F147: 1 | G147: (high turnover)
C148: 4 | D148: 1 | E148: 1 | F148: 1 | G148: (highest turnover)
B150: Impact on Setup | C150: =VLOOKUP(VALUE(InputTurnover),C145:F148,2,0) -> 1
B151: Impact on Management | C151: =VLOOKUP(VALUE(InputTurnover),C145:F148,3,0) -> 1
B152: Impact on ManagementY2 | C152: =VLOOKUP(VALUE(InputTurnover),C145:F148,4,0) -> 1
B154: x) Customers
B155: What is the sector independent impact of the number of customers on the setup and the management of social media channels?
C157: # Customers | D157: Setup Impact | E157: Mngmt Factor | F157: Mngmt Y2
C158: 1 | D158: 1 | E158: 1 | F158: 1 | G158: (no customers)
C159: 2 | D159: 1 | E159: 1 | F159: 1 | G159: (low # of customers)
C160: 3 | D160: 1 | E160: 1 | F160: 1 | G160: (average # of customers)
C161: 4 | D161: 1 | E161: 1 | F161: 1 | G161: (large # of customers)
C162: 5 | D162: 1 | E162: 1 | F162: 1 | G162: (largest # of customers)
B164: Impact on Setup | C164: =VLOOKUP(VALUE(InputKlanten),C158:F162,2,0) -> 1
B165: Impact on Management | C165: =VLOOKUP(VALUE(InputKlanten),C158:F162,3,0) -> 1
B166: Impact on ManagementY2 | C166: =VLOOKUP(VALUE(InputKlanten),C158:F162,4,0) -> 1
B168: x) Languages
B169: What is the sector independent impact of the number of languages on the setup and the management of email marketing?
C171: #Languages | D171: Setup Impact | E171: Mngmt Factor | F171: Mngmt Y2
C172: 0 | D172: 0 | E172: 0 | F172: 0 | G172: (no languages)
C173: 1 | D173: 1 | E173: 1 | F173: 1 | G173: (1 language)
C174: 2 | D174: 1.3 | E174: 1.1 | F174: 1.1 | G174: (2 languages)
C175: 3 | D175: 1.6 | E175: 1.2 | F175: 1.2 | G175: (3 languages)
C176: 4 | D176: 1.9 | E176: 1.3 | F176: 1.3 | G176: (4 languages)
B178: Impact on Setup | C178: =VLOOKUP(VALUE(InputEmailLanguages),C172:F176,2,0) -> 1.3
B179: Impact on Management | C179: =VLOOKUP(VALUE(InputEmailLanguages),C172:F176,3,0) -> 1.1
B180: Impact on ManagementY2 | C180: =VLOOKUP(VALUE(InputEmailLanguages),C172:F176,4,0) -> 1.1
B182: x) Current activity
B183: What is the sector independent impact of the current activity on the setup and the management of email marketing?
C185: Activity | D185: Setup Impact | E185: Mngmt Factor | F185: Mngmt Y2
C186: 1 | D186: 1 | E186: 1.4 | F186: 1.1 | G186: (no activity)
C187: 2 | D187: 1 | E187: 1.2 | F187: 1 | G187: (basic activity)
C188: 3 | D188: 0 | E188: 1 | F188: 0.9 | G188: (pro activity)
B190: Impact on Setup | C190: =VLOOKUP(VALUE(InputEmailActivity),C186:F188,2,0) -> 1
B191: Impact on Management | C191: =VLOOKUP(VALUE(InputEmailActivity),C186:F188,3,0) -> 1.4
B192: Impact on ManagementY2 | C192: =VLOOKUP(VALUE(InputEmailActivity),C186:F188,4,0) -> 1.1
B194: x) Frequentie
B195: What is the sector independent impact of the frequency of mailing on the setup and the management of email marketing?
C197: # Frequentie | D197: Setup Impact | E197: Mngmt Factor | F197: Mngmt Y2
C198: 1 | D198: 1 | E198: 1 | F198: 1 | G198: (every week)
C199: 2 | D199: 1 | E199: 0.5 | F199: 0.5 | G199: (every 2 weeks)
C200: 3 | D200: 1 | E200: =12/52 -> 0.2307692308 | F200: =12/52 -> 0.2307692308 | G200: (every month)
C201: 4 | D201: 1 | E201: =4/52 -> 0.07692307692 | F201: =4/52 -> 0.07692307692 | G201: (every quarter)
C202: 5 | D202: 1 | E202: =2/52 -> 0.03846153846 | F202: =2/52 -> 0.03846153846 | G202: (every half year)
B204: Impact on Setup | C204: =VLOOKUP(VALUE(InputEmailFrequency),C198:F202,2,0) -> 1
B205: Impact on Management | C205: =VLOOKUP(VALUE(InputEmailFrequency),C198:F202,3,0) -> 0.5
B206: Impact on ManagementY2 | C206: =VLOOKUP(VALUE(InputEmailFrequency),C198:F202,4,0) -> 0.5
B208: x) TOTAL IMPACT EMAIL MARKETING
B210: Impact on Setup | C210: =C125*C137*C150*C164*C178*C190*C204 -> 1.3
B211: Impact on Management | C211: =C126*C138*C151*C165*C179*C191*C205 -> 0.77
B212: Impact on ManagementY2 | C212: =C127*C139*C152*C166*C180*C192*C206 -> 0.605
A214: Email marketing mails
B216: 1. Frequentie | C216: What's the multiplier for the amount of emails sent
C218: # Frequentie | D218: Impact
C219: 1 | D219: =52/12 -> 4.333333333 | F219: (every week)
C220: 2 | D220: =26/12 -> 2.166666667 | F220: (every 2 weeks)
C221: 3 | D221: 1 | F221: (every month)
C222: 4 | D222: =4/12 -> 0.3333333333 | F222: (every quarter)
C223: 5 | D223: =2/12 -> 0.1666666667 | F223: (every half year)
B225: Impact | C225: =VLOOKUP(VALUE(InputEmailFrequency),C219:D223,2,0) -> 2.166666667
A227: Calculate impact of user provided information on Content Marketing cost
B229: X) Include
B230: In- or exclude setup and management of blogging?
C232: Include | D232: Setup Impact | E232: Mngmt Factor | F232: Mngmt Y2
C233: 0 | D233: 0 | E233: 0 | F233: 0 | G233: (exclude)
C234: 1 | D234: 1 | E234: 1 | F234: 1 | G234: (include)
B236: Impact on Setup | C236: =VLOOKUP(VALUE(InputIncludeBlog),C233:F234,2,0) -> 1
B237: Impact on Management | C237: =VLOOKUP(VALUE(InputIncludeBlog),C233:F234,3,0) -> 1
B238: Impact on ManagementY2 | C238: =VLOOKUP(VALUE(InputIncludeBlog),C233:F234,4,0) -> 1
B240: x) Products
B241: What is the sector independent impact of the number of products on the setup and the management of social media channels?
C243: # Products | D243: Setup Impact | E243: Mngmt Factor | F243: Mngmt Y2
C244: 1 | D244: 1 | E244: 1 | F244: 1 | G244: (low # of products)
C245: 2 | D245: 1 | E245: 1 | F245: 1 | G245: (average # of products)
C246: 3 | D246: 1 | E246: 1 | F246: 1 | G246: (large # of products)
B248: Impact on Setup | C248: =VLOOKUP(IF(VALUE(InputProducts)<OFFSET(LIST_PRODUCTRANGE,0,0,1,1),1,IF(VALUE(InputProducts)<OFFSET(LIST_PRODUCTRANGE,1,0,1,1),2,3)),C244:F246,2,0) -> 1
B249: Impact on Management | C249: =VLOOKUP(IF(VALUE(InputProducts)<OFFSET(LIST_PRODUCTRANGE,0,0,1,1),1,IF(VALUE(InputProducts)<OFFSET(LIST_PRODUCTRANGE,1,0,1,1),2,3)),C244:F246,3,0) -> 1
B250: Impact on ManagementY2 | C250: =VLOOKUP(IF(VALUE(InputProducts)<OFFSET(LIST_PRODUCTRANGE,0,0,1,1),1,IF(VALUE(InputProducts)<OFFSET(LIST_PRODUCTRANGE,1,0,1,1),2,3)),C244:F246,4,0) -> 1
B252: x) Turnover
B253: What is the sector independent impact of the company turnover on the setup and the management of social media channels?
C255: Turnover | D255: Setup Impact | E255: Mngmt Factor | F255: Mngmt Y2
C256: 1 | D256: 1 | E256: 1 | F256: 1 | G256: (low turnover)
C257: 2 | D257: 1 | E257: 1 | F257: 1 | G257: (average turnover)
C258: 3 | D258: 1 | E258: 1 | F258: 1 | G258: (high turnover)
C259: 4 | D259: 1 | E259: 1 | F259: 1 | G259: (highest turnover)
B261: Impact on Setup | C261: =VLOOKUP(VALUE(InputTurnover),C256:F259,2,0) -> 1
B262: Impact on Management | C262: =VLOOKUP(VALUE(InputTurnover),C256:F259,3,0) -> 1
B263: Impact on ManagementY2 | C263: =VLOOKUP(VALUE(InputTurnover),C256:F259,4,0) -> 1
B265: x) Customers
B266: What is the sector independent impact of the number of customers on the setup and the management of social media channels?
... 126 more rows
